{"text_format":"1","workbook":"xlsx","n_sheets":21,"sheets":["Cover Page","Contents","Facility Info","Operational Data","Operational Summary","Perf. Form 1","Energy Form 1","Permit Compliance","Improvements","Public Liasion","Residue Quality ","Water","Air (periodic)","Air (CEMS)","HCl","SO2","NOx","TOC","Particulates","CO 95% 10 min","NH3"],"not_rendered":{"charts":7,"images":2,"macros":1,"external_links":0,"defined_names":21,"comments":0,"pivot_tables":0},"unopened":[],"bounds":{"document_bytes":16777216,"sheet_cells":100000,"rows_first":2000,"rows_last":500,"rows_between":2000,"halvings":0,"cell_chars":16384,"cell_head_chars":4096},"cells_cut":0,"cells_raw":0,"read":"whole","date_system":"1900"}

{"sheet":"Cover Page","index":0,"n_rows":53,"n_cols":14,"rows_kept":53,"cut":false,"hidden":false,"merged":[[48,2,48,3],[48,6,48,8],[52,2,52,3],[36,1,36,8],[40,2,40,8],[42,2,42,4],[44,2,44,4],[46,2,46,3],[46,6,46,8],[13,13,18,15],[34,1,34,8],[0,3,5,6],[7,1,23,8],[28,1,28,8],[30,1,30,8],[32,1,32,8]]}
[null,null,null,"Add company logo"]
[null,null,null,null,null,null,null,null,null,null,null,null,null,"Version 2.1 11/11/19"]
[]
[]
[]
[]
[]
[null,"Add photo"]
[]
[]
[]
[]
[null,null,null,null,null,null,null,null,null,null,null,null,null,"Notes:"]
[null,null,null,null,null,null,null,null,null,null,null,null,null,"This template may require adjustments by individual operators to meet specific reporting requirements as defined in the site Permit(s)"]
[]
[]
[]
[]
[]
[]
[]
[]
[]
[]
[]
[]
[]
[]
[null,"Annual Performance Report 2021"]
[]
[null,"Permit EPR/XP3436WB/V002"]
[]
[null,"SUEZ R&R Wilton 11 EfW"]
[]
[null,"other name of facility (if applicable)"]
[]
[null,"SUEZ R&R"]
[]
[null,"Year:",2021]
[]
[null,"Address:","Wilton International, Middlesbrough TS10 4RG"]
[]
[null,"Tel: ","01642 442400"]
[]
[null,"Email: ","paula.bakes@suez.com"]
[]
[null,"Prepared by:","Paula Bakes",null,null,"Position:","EIR Manager"]
[]
[null,"Approved by:","Alex Biggins",null,null,"Position:","Plant Manager"]
[]
[null,"Version:",1]
[]
[null,"Issue Date:","2022-01-12"]

{"sheet":"Contents","index":1,"n_rows":44,"n_cols":11,"rows_kept":44,"cut":false,"hidden":false,"merged":[[43,0,46,9],[36,1,36,6],[37,1,37,6],[38,1,38,6],[39,1,39,6],[40,1,40,6],[41,1,41,6],[35,1,35,6],[21,1,21,6],[22,1,22,6],[23,1,23,6],[26,1,26,6],[27,1,27,6],[28,1,28,6],[29,1,29,6],[30,1,30,6],[31,1,31,6],[34,1,34,6],[20,1,20,6],[9,1,9,6],[10,1,10,6],[11,1,11,6],[12,1,12,6],[13,1,13,6],[14,1,14,6],[15,1,15,6],[16,1,16,6],[17,1,17,6],[18,1,18,6],[19,1,19,6],[4,10,7,14],[8,1,8,6],[3,1,3,6],[4,1,4,6],[5,1,5,6],[6,1,6,6],[7,1,7,6]]}
[{"$f":"+'Cover Page'!$B$29","v":"Annual Performance Report 2021"},null,null,null,{"$f":"+'Cover Page'!$B$33","v":"SUEZ R&R Wilton 11 EfW"}]
[]
["Contents",null,null,null,null,null,null,null,null,null,"Notes:"]
["Section","Subject",null,null,null,null,null,"Page ",null,null,"Section references and Page nos. to be inserted"]
[null,"Facility Information",null,null,null,null,null,null,null,null,"Sections and Subjects may require adjustment by individual operators to meet specific reporting requirements as defined in the sites Permit(s)"]
[null,"Operational Summary"]
[null,"Operational Data"]
[null,"Performance Form 1"]
[null,"Energy Form 1"]
[null,"Permit Compliance"]
[null,"Improvements"]
[null,"Public Liasion"]
[null,"Residue Quality - Optional"]
[null,"Emissions to Water"]
[null,"Emissions to Air (periodically monitored)"]
[null,"Emissions to Air (continuously monitored)"]
[null,"Hydrogen Chloride emissions"]
[null,"Sulphur Dioxdie emsissions"]
[null,"Oxides of Notrigen emissions"]
[null,"Total Organic Carbon emissions"]
[null,"Particulate Matter emissions"]
[null,"Carbon Monoxide emissions"]
[null,"Ammonia emissions"]
[]
[]
["Version Control"]
["Section","Information",null,null,null,null,null,"Date"]
[]
[]
[]
[]
[]
[]
["Distribution"]
["Copy","Name, Role",null,null,null,null,null,"No."]
[]
[]
[]
[]
[]
[]
[]
[]
["This report is required under the Industrial Emissions Directive’s Article 55(2) requirements on reporting and public information on waste incineration plants and co-incineration plants, which require the operator to produce an annual report on the functioning and monitoring of the plant and make it available to the public. "]

{"sheet":"Facility Info","index":2,"n_rows":22,"n_cols":11,"rows_kept":22,"cut":false,"hidden":false,"merged":[[4,0,17,8],[21,0,53,8],[4,10,13,13],[21,10,30,13]]}
[{"$f":"+'Cover Page'!$B$29","v":"Annual Performance Report 2021"},null,null,null,{"$f":"+'Cover Page'!$B$33","v":"SUEZ R&R Wilton 11 EfW"}]
[]
["Plant Description and Design",null,null,null,null,null,null,null,null,null,"Notes:"]
[]
["The Energy from Waste facility operates 24/7 and has a design capacity of 49.9 MW. This requires a fuel input with a maximum continuous rating of around 29.2 tonnes per hour of MSW (from Merseyside County Council and various commercial customers) with an average net calorific value of 9.8 MJ/kg. This equates to 467,200 tonnes per annum at 8000 hours operation per annum through two combustion lines. \n\nThe plant has two Lines capable of processing up to 500,000 tonnes of waste per year. Incoming waste is delivered to site by rail and bulk vehicle trucks. Rail waste is checked at SUEZ’s Knowsley Transfer station, weighed and then loaded into ISO containers before being placed onto rail carriages and transported to the EFW facility. \n\nRoad waste is weighed via weighbridge at the Wilton site, and then tipped in the traditional way in the waste reception hall.\n(alt enter to make new para)",null,null,null,null,null,null,null,null,null,"Include summary of plant design, design capacity, no. of combustion lines, electrical and heat capacity and any other general information that descibes the facility, its location and purpose "]
[]
[]
[]
[]
[]
[]
[]
[]
[]
[]
[]
[]
[]
[]
["Summary of Operational Processes and Procedures"]
[]
["WASTE RECEPTION\nThe plant is designed to accept contractual waste from Merseyside County Council via rail in bespoke ISO containers. Once at the EFW plant, the containers are lifted off the rail carriages by a gantry crane and placed onto mechanical ‘tilters’ The tilters operate hydraulically and move to the edge of the waste pit waste before being tilted to a 60 degree angle, allowing the waste to fall into the waste pit.\n\nWaste is also delivered by road via Bulk Transfer Vehicles in the standard operating way. \nAir needed for combustion is drawn into the furnace from above the waste reception hall so that odour and dust do not escape from the building.\n\nBUNKER\nMixing of waste occurs as the crane driver sorts the waste looking for unsuitable wastes to be removed, and to improve the homogeneity of the incinerator feedstock. \n\nCONTROL ROOM\nThere is one control room which centralises the operation of all equipment, including the grab crane used to mix and load waste into hoppers that feeds the furnace. All on-site functions are monitored automatically and manually. Its systems verify in real time that equipment is functioning properly, continuously monitor the combustion gas, and maximise the efficiency of the entire EfW process.\n\nGRATE AND BOILER\nWaste is lifted into the feed hoppers by the crane, from here waste falls into the furnace-charging chute and then onto the grate system for incineration. The thermal energy released from the burning is used to convert water to super-heated steam. At high pressure, this steam drives a turbine to generate electricity.\n\nENERGY GENERATION\nElectricity is generated at 11kv, with an electric capacity of 49.9 MWh.  The plant also has the capability of exporting steam at 3 different pressures, 58 bar(g), 17 bar(g) and 1.4 bar(g).  Steam is exported into the Wilton International site headers for use by a number of plants on site.  Where possible the steam is taken from turbine extract to ensure maximum efficiency.\n\nBOTTOM ASH\nAsh left on the grate after incineration is carried by conveyor to a recycling facility opposite the EFW plant. Once operational (February 2017) the bottom ash recycling facility will use a magnet above the conveyor to extract ferrous material for recycling. The remaining bottom ash is processed for recycling following classification of its hazardous properties. \n\nWATER-COOLED CONDENSERS\nAfter exiting the turbine, the steam is cooled and condensed back into water through water cooled condensers. This recovered water is treated and reused in the boilers to produce more steam. The water cooled condenser is capable of taking the full load from the boiler to ensure continuous operation of the EfW Plant.\n\nEMISSION CONTROL\nThe gases from the furnace are subject to a rigorous cleaning process involving selective non-catalytic reduction (SNCR), spray absorbers, and active carbon injection. This removes oxides of nitrogen, acidic gases, dioxins, and heavy metals from the gas stream.\n\nAIR POLLUTION CONTROL RESIDUE (APCR)\nThe cleaned gas is passed through fine-fabric bag filters to remove solid particles before it is emitted through the stack. The resultant APCR residue, or fly-ash, contains particles from the incineration process, we have a semi dry lime injection system. It is stored in a sealed silo until it removed from site for disposal.\n\nEMISSIONS MONITORING\nAs they pass through the stack, the residual flue gases from the process are continuously monitored before release. Each incinerator line has and independent stack and emissions monitoring system. This data is relayed automatically to the control room.\n(alt enter to make new para)",null,null,null,null,null,null,null,null,null,"Include summary of key processes and procedures such as (but not limited to); waste reception, control rooms, grate, bed and bolier, energy & heat  generation, cooling systems, residue management, emission controls, health and safety systems, maintenance"]

{"sheet":"Operational Data","index":3,"n_rows":63,"n_cols":8,"rows_kept":63,"cut":false,"hidden":false,"merged":[[32,1,37,1],[29,2,29,5],[29,6,29,7],[3,1,3,2],[7,1,19,1],[22,1,25,1],[27,1,28,1]]}
[{"$f":"+'Cover Page'!$B$29","v":"Annual Performance Report 2021"},null,null,null,{"$f":"+'Cover Page'!$B$33","v":"SUEZ R&R Wilton 11 EfW"}]
[]
["Operational Data"]
["Plant Size",500000,null,"tonnes pa",170,"MWth",49,"MWe"]
["No. of combustion lines",2,null,"No. of Turbines:",null,1]
[]
["Waste types received","Unit","Q1","Q2","Q3","Q4","Year Total","%"]
["Household / Local Authority","tonnes",122752.83,112669.98999999999,98892.13,122577,{"$f":"SUM(C8:F8)","v":456891.95},{"$f":"IF(G8>0,G8/$G$18,\"-\")","v":0.99571110967518517}]
["Commercial & Industrial ",null,731.52,0,47.22,888.26,{"$f":"SUM(C9:F9)","v":1667},3.632916753793832E-3]
["Hazardous ",null," -   "," -   "," -   "," -   ",0,"-"]
["Clinical",null," -   "," -   "," -   "," -   ",0,"-"]
["Waste wood (biomass) ",null," -   "," -   "," -   "," -   ",0,"-"]
["Refuse derived fuel ",null,175,null,null,null,175,3.8137998315172198E-4]
["Solid recovered fuel ",null," -   "," -   "," -   "," -   ",0,"-"]
["Spec Compost 19.05.03",null,126,null," -   "," -   ",126,2.7459358786923984E-4]
["Other [Please specify]",null,null,null,null,null,0,"-"]
["Other [Please specify]"]
["Total waste received",null,{"$f":"SUM(C8:C17)","v":123785.35},{"$f":"SUM(D8:D17)","v":112669.98999999999},{"$f":"SUM(E8:E17)","v":98939.35},{"$f":"SUM(F8:F17)","v":123465.26},{"$f":"SUM(G8:G17)","v":458859.95},1]
["Rejected Waste ",null,0,0,0,0,{"$f":"SUM(C19:F19)","v":0},{"$f":"IF(G19>0,G19/$G$18,\"-\")","v":"-"}]
["Waste transferred out",null,0,0,0,0,{"$f":"SUM(C20:F20)","v":0},{"$f":"IF(G20>0,G20/$G$18,\"-\")","v":"-"}]
["Total waste combusted",null,{"$f":"C18-SUM(C19:C20)","v":123785.35},{"$f":"D18-SUM(D19:D20)","v":112669.98999999999},98939.35,123465.26,{"$f":"SUM(C21:F21)","v":458859.95},{"$f":"IF(G21>0,G21/$G$18,\"-\")","v":1}]
["Energy Useage / Export","Unit","Q1","Q2","Q3","Q4","Year Total","KWh/te"]
["Power Generated","MWh",60322.2,54983.850000000006,40257.69,57703.648000000001,{"$f":"SUM(C23:F23)","v":213267.38799999998},{"$f":"IF(G23>0,G23*1000/$G$21,\"-\")","v":464.77664481286712}]
["Power Exported",null,49842.3,45023.44,31355,47444.399999999994,{"$f":"SUM(C24:F24)","v":173665.14},{"$f":"IF(G24>0,G24*1000/$G$21,\"-\")","v":378.47090381280822}]
["Power Used on site",null,10483.17,9970.2100000000028,9411.57,null,{"$f":"SUM(C25:F25)","v":29864.950000000004},{"$f":"IF(G25>0,G25*1000/$G$21,\"-\")","v":65.085109301868698}]
["Power Imported",null,3.27,9.8000000000000007,508.88,null,521.95000000000005,{"$f":"IF(G26>0,G26*1000/$G$21,\"-\")","v":1.1374930411773789}]
["Parasitic Load","%",0.17380000000000001,0.18129999999999999,0.23400000000000001,null,{"$f":"IF(G23>0,1-G24/(G23+G26),\"-\")","v":0.18768100586943193}]
["Thermal Energy Produced","MWh",77066.945717322582,75448.165259349524,83136.733457760332,97229.040406609914,{"$f":"SUM(C28:F28)","v":332880.88484104234},{"$f":"IF(G28>0,G28*1000/$G$21,\"-\")","v":725.45203572689729}]
["Thermal Energy Exported",null,77066.945717322582,75448.165259349524,83136.733457760332,97229.040406609914,332880.88484104234,{"$f":"IF(G29>0,G29*1000/$G$21,\"-\")","v":725.45203572689729}]
["R1 value",null,0.83,null,null,null,"Design / Operational / n/a"]
[]
["Waste Disposal & Recovery","Unit","Q1","Q2","Q3","Q4","Year Total","% inputs"]
["APC Residues - produced","tonnes",2168.8200000000002,2087.86,1944.94,2398,{"$f":"SUM(C33:F33)","v":8599.6200000000008},{"$f":"IF(G33>0,G33/$G$21,\"-\")","v":1.8741273889778354E-2}]
["IBA - produced",null,29831.570000000003,28540.129999999997,23371.620000000003,26858,108601.32,{"$f":"IF(G34>0,G34/$G$21,\"-\")","v":0.23667639766774154}]
["Metals recycling",null,5156,4775,4256,3743,{"$f":"SUM(C35:F35)","v":17930},3.9075103416630716E-2]
["Ferrous",null,3368,2889,2529,2415,{"$f":"SUM(C36:F36)","v":11201},2.4410498235899646E-2]
["Non Ferrous",null,1782,1886,1727,1328,6723,1.4651529295594439E-2]
["Mixed Metal Skips (Scrap Metal Skips)",null,10,2,6,8,26,5.6662168925398694E-5]
[]
["Raw Material Usage","Unit","Q1","Q2","Q3","Q4","Year Total","kg or Ltr /te"]
["Mains Water","m3",10821.000000000002,14376.999999999998,14321,13608,{"$f":"SUM(C41:F41)","v":53127},{"$f":"IF(G41>0,G41/$G$21,\"-\")","v":0.11578042494229449}]
["Other Water ( Demin & Raw)","m3",206221,199696,170760,191282,767959,{"$f":"IF(G42>0,G42/$G$21,\"-\")","v":1.6736239456069331}]
["Ammonia / Urea","kgs",465000,439000,429100,559440,1892540,4.1244392760797712]
["Activated Carbon","kgs",24100,22160,18760,23960,88980,0.19391537657622984]
["Lime / hydrated lime","kgs",932800,984920,814640,1113360,3845720,8.3810321646070882]
["Fuel oil (Mobile Plant)","ltrs",1070,773,15769,999,18611,4.0559216379638274E-2]
["Natural Gas","MWh",1493,2338.2200000000003,2151.5700000000002,2124,8106.7900000000009,1.7667242477797419E-2]
["Other",null,0,0,0,0,0,"-"]
[]
["Summary of Hours","Line/Unit","Q1","Q2","Q3","Q4","Year Total"]
["Hours of waste combustion, total",1,2100.7000000000003,1781.1999999999998,1440.6399999999999,2115.6999999999998,{"$f":"SUM(C51:F51)","v":7438.24},{"$f":"+(G51)/8760","v":0.84911415525114153}]
["Hours of waste combustion, total",2,2064.1,2089.1,1682.9,1937,7773.1,{"$f":"+(G52)/8760","v":0.88734018264840187}]
["Hours of waste combustion, total",3,0,0,0,0,0,"x %"]
["Hours of waste combustion, total",4,0,0,0,0,0,"x %"]
["Hours of waste combustion, total",5,0,0,0,0,{"$f":"SUM(C55:F55)","v":0},"x %"]
["Overall Avaliability, mean average of all lines",null,{"$f":"C51+C52","v":4164.8},{"$f":"D51+D52","v":3870.2999999999997},3123.54,4052.7,15211.34,{"$f":"+(G56)/8760","v":1.7364543378995434}]
["Hours of turbine operations, total",1,2013.6,2182.8000000000002,1768.9,2092.4,8057.6999999999989,"x %"]
["Hours of turbine operations, total",2,null,null,null,null,0,"x %"]
["Hours of heat / steam export",null,0,0,0,0,0,{"$f":"IF(B59>0,G58/8760,\"n/a\")","v":"n/a"}]
["Net Calorific Value of waste ","MJ/kg",9.1999999999999993,9.5,9.5,9.1999999999999993,37.4]
["Abnormal Events","qty.","-",0,0,0,0,{"$f":"IF(G61>0,\"yes\",\"no\")","v":"no"}]
["Abnormal operation","hours","-",0,0,0,0,{"$f":"+(G62)/8760","v":0}]
["Permit Breaches","qty.",0,0,0,0,0,{"$f":"IF(G63>0,\"yes\",\"no\")","v":"no"}]

{"sheet":"Operational Summary","index":4,"n_rows":31,"n_cols":11,"rows_kept":31,"cut":false,"hidden":false,"merged":[[4,0,26,8],[30,0,51,8],[4,10,13,13],[30,10,39,13]]}
[{"$f":"+'Cover Page'!$B$29","v":"Annual Performance Report 2021"},null,null,null,{"$f":"+'Cover Page'!$B$33","v":"SUEZ R&R Wilton 11 EfW"}]
[]
["Summary of Plant Operations and Maintenance during the reporting year",null,null,null,null,null,null,null,null,null,"Notes:"]
[]
["A very positive year with regards to the reduction in unplanned equipment stoppages, however there were several breakdowns, across the year:\n\nThe year started with the Turbine being off line due to a PLC failure, it was returned to service on 06 Jan 21. Concurrently we started to monitor high vibration on the ID fan on Line One, which was causing the ID Fan to regularly trip.  With the assistance of several SME we resolved the issue several weeks later.  \n\nThe Grate on Line Two had to be brought off line due to blockage in Feb 21, which was subsequently identified as grate bars failure; several grate bars had fractured and fell through to the grate bed causing a build up of ash under the grate.  This problem was share with the OEM and whilst this is a uncommon failure it was not unique.\n\nThere were two unrelated tube leaks during Aug, the second as a direct result of the pressure test for the first tube leak.  Both were quickly repaired and the line returned to service.\n\nFinally Line Two ID Fan bearing suffered a catastrophic failure in Nov, which brought Line Two off processing for 10 days.  \n\nThere were two planned maintenance periods during 2021; the first being a minor outages planned for the first and third week of April.  Due to operational pressures the second planned period was significantly reduced to demetalling the Grate only. Only critical activity was undertaking during the April outage. The major maintenance activity which was planned over the period 01 Sep - 05 Oct, was concluded successfully.  Major maintenance activity included boiler tube repairs, refractory survey and replacement and a minor service on the Grate. The Turbine underwent a level two maintenance event with nothing of significance to report.  ",null,null,null,null,null,null,null,null,null,"Include summary of key operational and/or maintenance activity undertaken in the year, such as any major component upgrades and/or replacements "]
[]
[]
[]
[]
[]
[]
[]
[]
[]
[]
[]
[]
[]
[]
[]
[]
[]
[]
[]
[]
[]
[]
[]
["Summary of Residue Handling for the reporting year"]
[]
["Residue handling system has performed well in 2021, previously we observed some corrosion in the actilab double screws, this was relined and coated with a resistant material in 2019 and on inspection this year there was minimal wear on the system so no additional work required on the double screws.\n\n",null,null,null,null,null,null,null,null,null,"Include in here a summary of residue handling regimes and destinations "]

{"sheet":"Perf. Form 1","index":5,"n_rows":54,"n_cols":10,"rows_kept":54,"cut":false,"hidden":false,"merged":[[47,0,47,1],[49,0,49,9],[50,0,51,9],[38,0,38,9],[39,0,40,9],[43,0,43,1],[43,2,43,9],[45,0,45,1],[46,0,46,1],[36,0,36,3],[36,4,36,5],[36,7,36,8],[37,0,37,3],[37,4,37,5],[37,7,37,8],[34,0,34,3],[34,4,34,5],[34,7,34,8],[35,0,35,3],[35,4,35,5],[35,7,35,8],[31,0,31,3],[31,7,31,8],[32,0,32,3],[32,4,32,5],[32,7,32,8],[33,0,33,3],[33,4,33,5],[33,7,33,8],[23,0,23,3],[23,4,23,5],[23,6,23,7],[23,8,23,9],[25,0,25,9],[26,0,28,9],[21,0,21,1],[21,2,21,3],[21,4,21,5],[21,6,21,7],[21,8,21,9],[22,0,22,3],[22,4,22,5],[22,6,22,7],[22,8,22,9],[19,0,19,1],[19,2,19,3],[19,4,19,5],[19,6,19,7],[19,8,19,9],[20,0,20,1],[20,2,20,3],[20,4,20,5],[20,6,20,7],[20,8,20,9],[17,0,17,1],[17,2,17,3],[17,4,17,5],[17,6,17,7],[17,8,17,9],[18,0,18,1],[18,2,18,3],[18,4,18,5],[18,6,18,7],[18,8,18,9],[15,0,15,1],[15,2,15,3],[15,4,15,5],[15,6,15,7],[15,8,15,9],[16,0,16,9],[13,0,13,1],[13,2,13,3],[13,4,13,5],[13,6,13,7],[13,8,13,9],[14,0,14,3],[14,4,14,5],[14,6,14,7],[14,8,14,9],[11,0,11,1],[11,2,11,3],[11,4,11,5],[11,6,11,7],[11,8,11,9],[12,0,12,1],[12,2,12,3],[12,4,12,5],[12,6,12,7],[12,8,12,9],[9,0,9,9],[10,0,10,1],[10,2,10,3],[10,4,10,5],[10,6,10,7],[10,8,10,9],[2,0,2,4],[2,6,2,8],[3,1,3,4],[5,3,5,4],[5,6,5,7],[8,0,8,1],[8,2,8,3],[8,4,8,5],[8,6,8,7],[8,8,8,9]]}
[{"$f":"+'Cover Page'!C39","v":2021}," Annual Reporting Performance Form 1"]
[]
[{"$f":"+'Cover Page'!B31","v":"Permit EPR/XP3436WB/V002"},null,null,null,null,"Operator: ",{"$f":"+'Cover Page'!B37:I37","v":0}]
["Facility:",{"$f":"+'Cover Page'!B33:I33","v":"SUEZ R&R Wilton 11 EfW"},null,null,null,"Form:","Performance 1"]
[]
["Reporting  Period from: ",null,null,"January",null,"to:","December"]
[]
[{"$f":"+A1","v":2021},"Annual Reporting of Waste Disposal and Recovery"]
["Waste Description",null,"Disposal Route(s)",null,"Disposal Tonnes",null,"Recovery Tonnes",null,"% / tonne of waste incinerated"]
["1) Hazardous Wastes"]
["APC Residues",null,"Landfill",null,{"$f":"'Operational Data'!G33","v":8599.6200000000008},null,0,null,{"$f":"IF((E11+G11)>0,(E11+G11)/'Operational Data'!$G$21, \"-\")","v":1.8741273889778354E-2}]
["IBA",null,null,null,null,null,null,null,{"$f":"IF((E12+G12)>0,(E12+G12)/'Operational Data'!$G$21, \"-\")","v":"-"}]
[null,null,null,null,null,null,null,null,{"$f":"IF((E13+G13)>0,(E13+G13)/'Operational Data'!$G$21, \"-\")","v":"-"}]
[null,null,null,null,null,null,null,null,{"$f":"IF((E14+G14)>0,(E14+G14)/'Operational Data'!$G$21, \"-\")","v":"-"}]
["Total Hazardous Waste",null,null,null,{"$f":"SUM(E11:F14)","v":8599.6200000000008},null,{"$f":"SUM(G11:H14)","v":0},null,{"$f":"IF((E15+G15)>0,(E15+G15)/'Operational Data'!$G$21, \"-\")","v":1.8741273889778354E-2}]
[]
["2) Non-Hazardous Wastes"]
["IBA",null,"Recovery",null,{"$f":"'Operational Data'!G34","v":108601.32},null,null,null,{"$f":"IF((E18+G18)>0,(E18+G18)/'Operational Data'!$G$21, \"-\")","v":0.23667639766774154}]
["Total Metals",null,"Recovery",null,{"$f":"'Operational Data'!G35","v":17930},null,null,null,{"$f":"IF((E19+G19)>0,(E19+G19)/'Operational Data'!$G$21, \"-\")","v":3.9075103416630716E-2}]
["Process Water",null,null,null,null,null,null,null,{"$f":"IF((E20+G20)>0,(E20+G20)/'Operational Data'!$G$21, \"-\")","v":"-"}]
[null,null,null,null,null,null,null,null,{"$f":"IF((E21+G21)>0,(E21+G21)/'Operational Data'!$G$21, \"-\")","v":"-"}]
[null,null,null,null,null,null,null,null,{"$f":"IF((E22+G22)>0,(E22+G22)/'Operational Data'!$G$21, \"-\")","v":"-"}]
["Total Non-Hazardous Waste",null,null,null,{"$f":"SUM(E18:F22)","v":126531.32},null,{"$f":"SUM(G18:H22)","v":0},null,{"$f":"IF((E23+G23)>0,(E23+G23)/'Operational Data'!$G$21, \"-\")","v":0.27575150108437224}]
["TOTAL WASTE",null,null,null,{"$f":"+E23+E15","v":135130.94},null,{"$f":"+G23+G15","v":0},null,{"$f":"IF((E24+G24)>0,(E24+G24)/'Operational Data'!$G$21, \"-\")","v":0.29449277497415061}]
[]
["Operator’s comments :"]
[]
[]
[]
[]
[{"$f":"+A1","v":2021},"Annual Reporting of Water and Other Raw Material Usage"]
["Raw Material",null,null,null,"Usage",null,"Unit","Specific Useage",null,"Unit"]
["Mains Water",null,null,null,{"$f":"+'Operational Data'!G41","v":53127},null,"m3",{"$f":"IF(E33>0,E33/'Operational Data'!$G$21,\"-\")","v":0.11578042494229449},null,"m3/te"]
["Total Water",null,null,null,{"$f":"+'Operational Data'!G42+'Operational Data'!G41","v":821086},null,"m3",{"$f":"IF(E34>0,E34/'Operational Data'!$G$21,\"-\")","v":1.7894043705492275},null,"m3/te"]
["Urea / Ammonia",null,null,null,{"$f":"+'Operational Data'!G43","v":1892540},null,"kg",{"$f":"IF(E35>0,E35/'Operational Data'!$G$21,\"-\")","v":4.1244392760797712},null,"kg/te"]
["Activated Carbon",null,null,null,{"$f":"+'Operational Data'!G44","v":88980},null,"kg",{"$f":"IF(E36>0,E36/'Operational Data'!$G$21,\"-\")","v":0.19391537657622984},null,"kg/te"]
["Lime / hydrated lime / Sodium Bicarb.",null,null,null,{"$f":"+'Operational Data'!G45","v":3845720},null,"kg",{"$f":"IF(E37>0,E37/'Operational Data'!$G$21,\"-\")","v":8.3810321646070882},null,"kg/te"]
[]
["Operator’s comments :"]
[]
[]
[]
[{"$f":"+A31","v":2021},"Annual Reporting of other performance indicators "]
["Parameter",null,"Results by Line"]
[null,null,"A1","A2","A3","A4","A5",null,"Turbine 1","Turbine 2"]
["Operating hours for the year, hours",null,{"$f":"'Operational Data'!G51","v":7438.24},{"$f":"'Operational Data'!G52","v":7773.1}]
["Number of periods of abnormal operation, qty.",null,0,0]
["Cumulative hours of abnormal operation for this year, hours",null,0,0]
[]
["Operator’s comments :"]
[]
[]
[]
["Signed: ",null,null,null,null,null,"Date:"]

{"sheet":"Energy Form 1","index":6,"n_rows":29,"n_cols":7,"rows_kept":29,"cut":false,"hidden":false,"merged":[[15,0,15,2],[15,3,15,4],[15,6,15,8],[17,0,17,8],[18,0,24,8],[13,0,13,2],[13,3,13,4],[13,6,13,8],[14,0,14,2],[14,3,14,4],[14,6,14,8],[11,0,11,2],[11,3,11,4],[11,6,11,8],[12,0,12,2],[12,3,12,4],[12,6,12,8],[9,0,9,2],[9,3,9,4],[9,6,9,8],[10,0,10,2],[10,3,10,4],[10,6,10,8],[2,6,2,8],[4,1,4,4],[6,3,6,4],[6,6,6,7],[8,0,8,2],[8,3,8,4],[8,6,8,8]]}
[{"$f":"+'Cover Page'!C39","v":2021}," Annual Reporting of Energy Usage/Export"]
[]
[{"$f":"+'Cover Page'!B31","v":"Permit EPR/XP3436WB/V002"},null,null,null,null,"Operator: ",{"$f":"+'Cover Page'!B37:I37","v":0}]
[]
["Facility:",{"$f":"+'Cover Page'!B33:I33","v":"SUEZ R&R Wilton 11 EfW"},null,null,null,"Form:","Energy 1"]
[]
["Reporting  Period from: ",null,null,{"$f":"+'Perf. Form 1'!D6:E6","v":"January"},null,"to:",{"$f":"+'Perf. Form 1'!G6:H6","v":"December"}]
[]
["Energy Source",null,null,"Energy Usage",null,"Unit","Specific Useage (KWh/tonne incinerated"]
["Electricity Produced",null,null,{"$f":"+'Operational Data'!G23","v":213267.38799999998},null,"MWh",{"$f":"+'Operational Data'!H23","v":464.77664481286712}]
["Electricity Imported   ",null,null,{"$f":"+'Operational Data'!G26","v":521.95000000000005},null,"MWh",{"$f":"+'Operational Data'!H26","v":1.1374930411773789}]
["Electricity Exported",null,null,{"$f":"+'Operational Data'!G24","v":173665.14},null,"MWh",{"$f":"+'Operational Data'!H24","v":378.47090381280822}]
["Natural Gas",null,null,{"$f":"'Operational Data'!G47","v":8106.7900000000009},null,"tonnes",{"$f":"'Operational Data'!H47","v":1.7667242477797419E-2}]
["Steam/hot water exported",null,null,{"$f":"+'Operational Data'!G29","v":332880.88484104234},null,"GWh",{"$f":"+'Operational Data'!H29","v":725.45203572689729}]
[]
[]
[]
["Operator’s comments :"]
[]
[]
[]
[]
[]
[]
[]
[]
[]
[]
["Signed: ",null,null,null,null,null,"Date:"]

{"sheet":"Permit Compliance","index":7,"n_rows":34,"n_cols":8,"rows_kept":34,"cut":false,"hidden":false,"merged":[[26,0,26,10],[18,0,18,10],[31,1,31,3],[31,4,31,6],[31,7,31,9],[27,1,27,3],[27,4,27,6],[27,7,27,9],[28,1,28,3],[28,4,28,6],[28,7,28,9],[23,1,23,3],[23,4,23,6],[23,7,23,9],[24,1,24,3],[24,4,24,6],[32,1,32,3],[32,4,32,6],[32,7,32,9],[29,1,29,3],[29,4,29,6],[29,7,29,9],[30,1,30,3],[30,4,30,6],[30,7,30,9],[24,7,24,9],[21,1,21,3],[21,4,21,6],[21,7,21,9],[22,1,22,3],[22,4,22,6],[22,7,22,9],[19,1,19,3],[19,4,19,6],[19,7,19,9],[20,1,20,3],[20,4,20,6],[20,7,20,9],[14,0,14,1],[14,2,14,4],[14,5,14,8],[15,0,15,1],[16,2,16,4],[16,5,16,8],[15,2,15,4],[15,5,15,8],[16,0,16,1],[12,2,12,4],[12,5,12,8],[13,0,13,1],[13,2,13,4],[13,5,13,8],[33,4,33,8],[9,0,9,1],[9,2,9,4],[9,5,9,8],[7,0,7,1],[7,2,7,8],[8,0,8,1],[8,2,8,4],[8,5,8,8],[10,0,10,1],[10,2,10,4],[10,5,10,8],[11,0,11,1],[11,2,11,4],[11,5,11,8],[12,0,12,1]]}
[{"$f":"+'Cover Page'!$B$29","v":"Annual Performance Report 2021"},null,null,null,{"$f":"+'Cover Page'!$B$33","v":"SUEZ R&R Wilton 11 EfW"}]
[]
["Summary of Permit Compliance"]
[]
["Compliance with permit limits for continuously monitored pollutants"]
[]
["The plant met its emission limits as shown in the table below:"]
["Substance",null,"Percentage time compliant during operation"]
[null,null,"Half-hourly limit",null,null,"Daily limit"]
["Particulates",null,1,null,null,1]
["Oxides of nitrogen",null,1,null,null,1]
["Sulphur dioxide",null,1,null,null,1]
["Carbon monoxide",null," \n100% 95% of 10-min averages",null,null,1]
["Total organic carbon",null,1,null,null,1]
["Hydrogen chloride",null,1,null,null,1]
["Hydrogen fluoride",null,"NA",null,null,"NA"]
[]
[]
["Summary of any notifications or non-compliances under the permit"]
["Date","Summary of notification or non-compliance [including Line/Reference]",null,null,"Reason ",null,null,"Measures taken to prevent reoccurrence"]
[]
[]
[]
[]
[]
[]
["Summary of any complaints received and actions to taken to resolve them."]
["Date","Summary of complaint [including Line/Reference]",null,null,"Reason *",null,null,"Measures taken to prevent reoccurrence"]
[]
[]
[]
[]
[]
[null,null,null,null,"* including whether substantiated by the operator or the EA"]

{"sheet":"Improvements","index":8,"n_rows":39,"n_cols":5,"rows_kept":39,"cut":false,"hidden":false,"merged":[[37,0,37,9],[38,0,47,9],[4,0,4,9],[5,0,13,9],[15,0,15,9],[16,0,24,9],[26,0,26,9],[27,0,35,9]]}
[{"$f":"+'Cover Page'!$B$29","v":"Annual Performance Report 2021"},null,null,null,{"$f":"+'Cover Page'!$B$33","v":"SUEZ R&R Wilton 11 EfW"}]
[]
["Summary of Plant Improvements"]
[]
["Summary of any efficiency improvements that have been completed within the year."]
["The improvements made in 2020 that allowed us to optimise our lime dosing in 2021 provided a large saving, with raw lime usage and APCR production reductions of around 800 tonnes and 970 tonnes respectively. \n\nIn early 2021 we identified what we believed was a steam system efficiency loss which was determined to be likely due to steam losses through various sub systems. Some of these sub systems had also caused us availability losses in the past and so we identified some key areas for process improvement. \n\nIn the major 2021 outage we executed the first group of improvements which, in particular, involved HP steam valve replacement and complete overhauls, isolation of redundant equipment and optimisation of the turbine LP gland. In total, we believe we have seen an increase in electrical generation at the turbine generator of around 1.0 - 1.5 MW. Further improvements are planned for 2022 which may slightly increase this further. \n\nFollowing the addition of SPGs in the boiler third passes in 2020, online explosive cleaning was much reduced and this contributed to our positive reductions in unplanned availability losses in 2021. \n\n"]
[]
[]
[]
[]
[]
[]
[]
[]
[]
["Summary of any permit improvement conditions that have been completed within the year and the resulting environmental benefits."]
["None, completed in previous years. "]
[]
[]
[]
[]
[]
[]
[]
[]
[]
["Summary of any changes to the plant or operating techniques which required a variation to the permit and a summary of the resulting environmental impact."]
["None. "]
[]
[]
[]
[]
[]
[]
[]
[]
[]
["Summary of any other improvements made to the plant or planned to be made and a summary of the resulting environmental benefits."]
["Lime usage and APCR production improved as described above following optimisation. "]

{"sheet":"Public Liasion","index":9,"n_rows":32,"n_cols":5,"rows_kept":32,"cut":false,"hidden":false,"merged":[[19,0,19,1],[19,2,19,9],[28,0,29,1],[28,2,29,9],[31,0,31,9],[20,0,21,1],[20,2,21,9],[22,0,23,1],[22,2,23,9],[24,0,25,1],[24,2,25,9],[26,0,27,1],[26,2,27,9],[6,0,7,1],[6,2,7,9],[18,0,18,9],[5,0,5,1],[5,2,5,9],[16,0,17,1],[16,2,17,9],[10,0,11,1],[10,2,11,9],[14,0,15,1],[14,2,15,9],[12,0,13,1],[12,2,13,9],[8,0,9,1],[8,2,9,9]]}
[{"$f":"+'Cover Page'!$B$29","v":"Annual Performance Report 2021"},null,null,null,{"$f":"+'Cover Page'!$B$33","v":"SUEZ R&R Wilton 11 EfW"}]
[]
["Details of Public & Stakeholder Liasion"]
[]
["Summary of events held during the reporting year."]
["Date",null,"Description"]
["2021-03-09",null,"Investment Party - Site Visit"]
[]
["2021-07-28",null,"Sembcorp - Wilton Operational Meeting"]
[]
["2021-10-08",null,"Redcar Paliament - Site Visit"]
[]
["2021-10-27",null,"Sembcorp - Wilton Operational Meeting"]
[]
["2021-11-12",null,"EA – Site visit"]
[]
["2021-11-19",null,"MWDA - Paul Jobe Compliance Visit"]
[]
["List of events planned for next year"]
["Date",null,"Description"]
[]
[]
[]
[]
[]
[]
[]
[]
[]
[]
[]
["If you wish to be involved in the public liasion programme, please contact _________________"]

{"sheet":"Residue Quality ","index":10,"n_rows":35,"n_cols":6,"rows_kept":35,"cut":false,"hidden":false,"merged":[[35,0,40,6],[32,3,32,4],[34,0,34,6],[27,0,28,1],[29,0,29,1],[30,0,30,1],[31,0,31,1],[32,0,32,1],[29,3,29,4],[30,3,30,4],[29,5,29,6],[30,5,30,6],[31,5,31,6],[32,5,32,6],[20,0,21,1],[20,2,21,6],[22,0,23,1],[22,2,23,6],[31,3,31,4],[27,2,28,2],[28,3,28,4],[28,5,28,6],[27,3,27,6],[26,0,26,6],[5,0,6,6],[7,0,8,6],[9,0,10,6],[14,0,15,1],[14,2,15,6],[16,0,17,1],[16,2,17,6],[18,0,19,1],[18,2,19,6],[12,0,12,6],[13,0,13,1],[13,2,13,6]]}
[{"$f":"+'Cover Page'!$B$29","v":"Annual Performance Report 2021"},null,null,null,{"$f":"+'Cover Page'!$B$33","v":"SUEZ R&R Wilton 11 EfW"}]
[]
["Residue Quality Monitoring Requirements"]
[]
["Summary of monitoring undertaken and compliance"]
["Quarterly IBA & APCR samples taken on Lines 1&2"]
[]
["Fortnightly hazard assessment carried out on Lines 1&2"]
[]
[]
[]
[]
["Commentary on any specific events"]
["Date & Event",null,"Description"]
[]
[]
[]
[]
[]
[]
[]
[]
[]
[]
[]
[]
["Residue Quality Monitoring Results"]
["Parameter (unit) ",null,"Limit","Normal Operation "]
[null,null,null,"Bottom ash  ",null,"APC Residues"]
["Loss on Ignition (%)",null,"<5%","-"]
["ToC (%)",null,"<3%",1.18E-2]
["No. of Assessments Undertaken",null,"---","1 samples per quarter"]
["No. of Hazardous Assessments",null,"---","Fortnightly hazard assessment, unless plant outage"]
[]
["Comments :"]

{"sheet":"Water","index":11,"n_rows":23,"n_cols":10,"rows_kept":23,"cut":false,"hidden":false,"merged":[[29,0,29,2],[29,3,29,5],[26,0,26,2],[26,3,26,5],[27,0,27,2],[27,3,27,5],[28,0,28,2],[28,3,28,5],[23,0,23,2],[23,3,23,5],[24,0,24,2],[24,3,24,5],[25,0,25,2],[25,3,25,5],[21,0,21,9],[22,0,22,2],[22,3,22,5],[14,0,15,1],[14,2,15,9],[16,0,17,1],[16,2,17,9],[18,0,19,1],[18,2,19,9],[5,0,6,9],[7,0,8,9],[9,0,10,9],[12,0,12,9],[13,0,13,1],[13,2,13,9]]}
[{"$f":"+'Cover Page'!$B$29","v":"Annual Performance Report 2021"},null,null,null,{"$f":"+'Cover Page'!$B$33","v":"SUEZ R&R Wilton 11 EfW"}]
[]
["Emissions to Water"]
[]
["Summary of monitoring undertaken and compliance"]
["None carried out "]
[]
[]
[]
[]
[]
[]
["Commentary on any specific events"]
["Date & Event",null,"Description"]
[]
[]
[]
[]
[]
[]
[]
["Emissions to Water / Sewer"]
["Parameter",null,null,"Monitoring Frequency",null,null,"Limit","Target","Max.","Average"]

{"sheet":"Air (periodic)","index":12,"n_rows":39,"n_cols":13,"rows_kept":39,"cut":false,"hidden":false,"merged":[[18,3,18,4],[27,3,27,4],[33,3,33,4],[19,3,19,4],[20,3,20,4],[21,3,21,4],[22,3,22,4],[23,3,23,4],[24,3,24,4],[31,3,31,4],[25,3,25,4],[26,3,26,4],[28,3,28,4],[13,3,13,4],[14,3,14,4],[15,3,15,4],[16,3,16,4],[17,3,17,4],[38,0,38,9],[19,0,19,1],[20,0,20,1],[21,0,21,1],[34,3,34,4],[35,3,35,4],[33,0,33,1],[34,0,34,1],[35,0,35,1],[36,0,36,1],[24,0,24,1],[32,3,32,4],[39,0,40,9],[25,0,25,1],[26,0,26,1],[22,0,22,1],[23,0,23,1],[37,0,37,1],[27,0,27,1],[28,0,28,1],[29,0,29,1],[30,0,30,1],[31,0,31,1],[32,0,32,1],[37,3,37,4],[29,3,29,4],[30,3,30,4],[36,3,36,4],[16,0,16,1],[17,0,17,1],[18,0,18,1],[13,0,13,1],[14,0,14,1],[15,0,15,1],[12,0,12,1],[11,3,11,4],[12,3,12,4],[9,0,10,1],[9,5,9,9],[9,3,10,4],[9,2,10,2],[5,12,8,15],[9,12,11,15],[8,0,8,9],[5,0,6,9],[11,0,11,1]]}
[{"$f":"+'Cover Page'!$B$29","v":"Annual Performance Report 2021"},null,null,null,{"$f":"+'Cover Page'!$B$33","v":"SUEZ R&R Wilton 11 EfW"}]
[]
["Emissions to Air (periodically monitored)"]
[]
["Summary of monitoring undertaken, standards used and compliance",null,null,null,null,null,null,null,null,null,null,null,"Notes:"]
["Monitoring completed biannually.",null,null,null,null,null,null,null,null,null,null,null,"Template may require adjustment for any bespoke monitoring requirements of permit. "]
[]
[]
["Results of emissions to air that are periodically monitored"]
["Substance",null,"Ref. Period","Emission Limit Value",null,"Average",null,null,null,null,null,null,"User to add additional tables as necessary, depending on whether quarterly or bi-annual reporting is required for the compliance year"]
[null,null,null,null,null,"A1","A2","A3","A4","A5"]
["Hydrogen fluoride",null,"1 hr","2 mg/m3",null,0.03,2.75E-2]
["Cd and Th and their compounds",null,"6-8hrs","0.05 mg/m3",null,1.8500000000000001E-3,1.0300000000000001E-3]
["Hg and its compounds",null,"6-8hrs","0.05 mg/m3",null,1E-3,1.2800000000000001E-3]
["Sb, As, Pb, Cr, Co, Cu, Mn, Ni, V and their compounds",null,"6-8hrs","0.5 mg/m3",null,6.8000000000000005E-2,7.7499999999999999E-2]
["Dioxins & Furans (I-TEQ)",null,"6-8hrs","0.1 ng/m3",null,7.6E-3,5.2500000000000003E-3]
["PCBs (WHO-TEQ Humans / Mammals)",null,"6-8hrs","None set ng/m3",null,5.8500000000000002E-4,6.4999999999999997E-4]
["PCBs (WHO-TEQ Fish)",null,"6-8hrs","None set ng/m3",null,2.9E-5,2.7500000000000001E-5]
["PCBs (WHO-TEQ Birds)",null,"6-8hrs","None set ng/m3",null,1.505E-3,1.47E-3]
["Dioxins & Furans (WHO-TEQ Humans / Mammals)",null,"6-8hrs","None set ng/m3",null,7.6E-3,5.4999999999999997E-3]
["Dioxins & Furans (WHO-TEQ Fish)",null,"6-8hrs","None set ng/m3",null,7.7000000000000002E-3,4.8999999999999998E-3]
["Dioxins & Furans (WHO-TEQ Birds)",null,"6-8hrs","None set ng/m3",null,9.6500000000000006E-3,6.45E-3]
["Anthanthrene",null,"6-8hrs","None set µg/m3",null,1.5E-3,1.5499999999999999E-3]
["Benzo(a)anthracene",null,"6-8hrs","None set µg/m3",null,3.7000000000000002E-3,1.5499999999999999E-3]
["Benzo(a)pyrene",null,"6-8hrs","None set µg/m3",null,1.5E-3,1.5499999999999999E-3]
["Benzo(b)fluoranthene",null,"6-8hrs","None set µg/m3",null,1.65E-3,1.5499999999999999E-3]
["Benzo(b)naptho(2,1-d) thiophene",null,"6-8hrs","None set µg/m3",null,1.5E-3,1.6000000000000001E-3]
["Benzo(c)phenanthrene",null,"6-8hrs","None set µg/m3",null,1.5E-3,1.5499999999999999E-3]
["Benzo(ghi)perylene",null,"6-8hrs","None set µg/m3",null,1.5E-3,2.0999999999999999E-3]
["Benzo(k)fluoranthene",null,"6-8hrs","None set µg/m3",null,1.5E-3,1.5499999999999999E-3]
["Cholanthrene",null,"6-8hrs","None set µg/m3",null,1.5E-3,1.5499999999999999E-3]
["Chrysene",null,"6-8hrs","None set µg/m3",null,7.1000000000000004E-3,1.75E-3]
["Cyclopenta(cd)pyrene",null,"6-8hrs","None set µg/m3",null,1.6000000000000001E-3,1.5499999999999999E-3]
["Dibenzo(ai)pyrene",null,"6-8hrs","None set µg/m3",null,1.5E-3,1.5499999999999999E-3]
["Dibenzo(ah)anthracene",null,"6-8hrs","None set µg/m3",null,1.5E-3,1.5499999999999999E-3]
["Fluoranthene",null,"6-8hrs","None set µg/m3",null,2.9499999999999998E-2,4.0750000000000001E-2]
["Indeno(123-cd) pyrene",null,"6-8hrs","None set µg/m3",null,1.5E-3,1.5499999999999999E-3]
["Naphthalene",null,"6-8hrs","None set µg/m3",null,0.30149999999999999,9.35E-2]
["Comments :"]

{"sheet":"Air (CEMS)","index":13,"n_rows":29,"n_cols":16,"rows_kept":29,"cut":false,"hidden":false,"merged":[[27,0,27,12],[29,0,30,12],[13,0,14,0],[5,0,6,12],[7,0,8,12],[10,0,10,12],[11,0,12,0],[11,2,12,2],[11,1,12,1],[11,3,11,4],[11,5,11,6],[11,7,11,8],[11,9,11,10],[11,11,11,12]]}
[{"$f":"+'Cover Page'!$B$29","v":"Annual Performance Report 2021"},null,null,null,null,null,null,null,{"$f":"+'Cover Page'!$B$33","v":"SUEZ R&R Wilton 11 EfW"}]
[]
["Emissions to Air (continously monitored)"]
[null,null,null,null,null,null,null,null,null,null,null,null,null,null,null,"Notes:"]
["Summary of monitoring undertaken, standards used and compliance",null,null,null,null,null,null,null,null,null,null,null,null,null,null,"Template may require adjustment for any bespoke monitoring requirements of permit"]
[]
[]
[]
[]
[]
["Results of emissions to air that are continuously monitored"]
["Substance","Reference Period","Emission Limit Value","A1",null,"A2",null,"A3",null,"A4",null,"A5"]
[null,null,null,"Max.","Avg.","Max.","Avg.","Max.","Avg.","Max.","Avg.","Max.","Avg."]
["Oxides of nitrogen","Daily mean","200 mg/m3 ",{"$f":"NOx!$O$19","v":195},{"$f":"NOx!$N$19","v":171.33333333333334},{"$f":"NOx!$O$34","v":184},{"$f":"NOx!$N$34","v":174.33333333333334}]
[null,"½ hourly mean","400 mg/m3 ",{"$f":"NOx!$M$19","v":313},{"$f":"NOx!$L$19","v":171.33333333333334},{"$f":"NOx!$M$34","v":298},{"$f":"NOx!$L$34","v":174.33333333333334}]
["Particulates","Daily mean","10 mg/m3",{"$f":"Particulates!$O$19","v":0.9},{"$f":"Particulates!$N$19","v":0.39999999999999997},{"$f":"Particulates!$O$34","v":0.5},{"$f":"Particulates!$N$34","v":0.39999999999999997}]
[null,"½ hourly mean","30 mg/m3 ",{"$f":"Particulates!$M$19","v":6.1},{"$f":"Particulates!$L$19","v":0.39999999999999997},{"$f":"Particulates!$M$34","v":4.7},{"$f":"Particulates!$L$34","v":0.39999999999999997}]
["Total Organic Carbon ","Daily mean","10 mg/m3 ",{"$f":"TOC!$O$19","v":0.9},{"$f":"TOC!$N$19","v":0.55833333333333324},{"$f":"TOC!$O$34","v":0.8},{"$f":"TOC!$N$34","v":0.3833333333333333}]
[null,"½ hourly mean","20 mg/m3 ",{"$f":"TOC!$M$19","v":6.2},{"$f":"TOC!$L$19","v":0.57499999999999984},{"$f":"TOC!$M$34","v":5.0999999999999996},{"$f":"TOC!$L$34","v":0.3833333333333333}]
["Hydrogen chloride ","Daily mean","10 mg/m3 ",{"$f":"HCl!$O$19","v":9},{"$f":"HCl!$N$19","v":5.583333333333333},{"$f":"HCl!$O$34","v":9},{"$f":"HCl!$N$34","v":6.5}]
[null,"½ hourly mean","60 mg/m3 ",{"$f":"HCl!$M$19","v":15},{"$f":"HCl!$L$19","v":5.583333333333333},{"$f":"HCl!$M$34","v":17},{"$f":"HCl!$L$34","v":6.5}]
["Sulphur dioxide","Daily mean","50 mg/m3 ",{"$f":"'SO2'!$O$19","v":47},{"$f":"'SO2'!$N$19","v":27.5},{"$f":"'SO2'!$O$34","v":41},{"$f":"'SO2'!$N$34","v":26.833333333333332}]
[null,"½ hourly mean","200 mg/m3 ",{"$f":"'SO2'!$M$19","v":119},{"$f":"'SO2'!$L$19","v":27.5},{"$f":"'SO2'!$M$34","v":88},{"$f":"'SO2'!$L$34","v":26.833333333333332}]
["Carbon monoxide ","Daily mean","50 mg/m3 ",{"$f":"'CO 95% 10 min'!Q19","v":16},{"$f":"'CO 95% 10 min'!P19","v":7.083333333333333},{"$f":"'CO 95% 10 min'!Q34","v":14},{"$f":"'CO 95% 10 min'!P34","v":5.916666666666667}]
[null,"½ hourly mean *","100 mg/m3 *"]
[null,"95%ile 10-min avg *","150 mg/m3 *",{"$f":"'CO 95% 10 min'!M19","v":11.833333333333334},null,{"$f":"'CO 95% 10 min'!M34","v":9.75}]
[" Ammonia","Daily mean","No limit set",{"$f":"'NH3'!$O$19","v":4},{"$f":"'NH3'!$N$19","v":1.0833333333333333},{"$f":"'NH3'!$O$34","v":4},{"$f":"'NH3'!$N$34","v":1.1666666666666667}]
["* = delete or amend as appropriate"]
["Comments :"]

{"sheet":"HCl","index":14,"n_rows":79,"n_cols":17,"rows_kept":79,"cut":false,"hidden":false,"merged":[[12,16,15,18],[51,9,63,9],[66,9,78,9],[4,9,4,14],[4,1,4,3],[4,4,4,6],[48,0,51,6],[47,0,47,6],[6,9,18,9],[21,9,33,9],[36,9,48,9],[3,16,7,18],[9,16,11,18]]}
[{"$f":"+'Cover Page'!$B$29","v":"Annual Performance Report 2021"},null,null,null,{"$f":"+'Cover Page'!$B$33","v":"SUEZ R&R Wilton 11 EfW"}]
[]
["Monitoring of Hydrogen Chloride emissions",null,null,"Whole Installation",null,null,"See  Notes in Cell Q3",null,null,{"$f":"+A3","v":"Monitoring of Hydrogen Chloride emissions"},null,null,null,"Per Combustion Line",null,null,"Notes:"]
[null,null,null,null,null,null,null,null,null,null,null,null,null,null,null,null,"User to add logic to complete Whole installation, Table A5:G18. From the data in Per Combustion Line, Table J6:O79, subject to No. of lines installed"]
["mg/Nm3","1/2 Hourly Reference Periods",null,null,"Daily Reference Periods"]
[{"$f":"+'Cover Page'!C39","v":2021},"1/2 hourly HCl ELV","Monthly 1/2 hourly mean","Highest 1/2 hourly maximum","Daily HCl ELV","Monthly daily mean","Highest daily maximum",null,null,{"$f":"+A6","v":2021},"mg/Nm3","Monthly 1/2 hourly mean","Monthly 1/2 hourly maximum","Monthly daily mean","Monthly daily maximum"]
["Jan",60,{"$f":"AVERAGE(L7,L22)","v":7},{"$f":"MAX(M7,M22)","v":13},10,{"$f":"AVERAGE(N7,N22)","v":7},{"$f":"MAX(O7,O22)","v":9},null,null,"A1","Jan",7,11,7,9]
["Feb",60,{"$f":"AVERAGE(L8,L23)","v":6.5},{"$f":"MAX(M8,M23)","v":12},10,{"$f":"AVERAGE(N8,N23)","v":6.5},{"$f":"MAX(O8,O23)","v":8},null,null,null,"Feb",7,12,7,8]
["Mar",60,8,17,10,8,9,null,null,null,"Mar",8,13,8,9,null,"Whole Installation table A5:G18:"]
["Apr",60,6.5,12,10,6.5,9,null,null,null,"Apr",5,11,5,8,null,"Mean: for 1/2 hourly and daily periods calculate mean of values across all operational combustion lines for the month"]
["May",60,6,11,10,6,9,null,null,null,"May",5,10,5,7]
["Jun",60,7,15,10,7,9,null,null,null,"Jun",6,15,6,8]
["Jul",60,8,11,10,8,9,null,null,null,"Jul",8,11,8,9,null,"Maximum: for 1/2 hourly and daily periods use the highest value across all operational combustion lines for the month"]
["Aug",60,7,12,10,7,9,null,null,null,"Aug",6,11,6,9]
["Sep",60,5.5,10,10,5.5,8,null,null,null,"Sep",3,4,3,3]
["Oct",60,3.5,7,10,3.5,4,null,null,null,"Oct",4,6,4,4]
["Nov",60,3.5,7,10,3.5,5,null,null,null,"Nov",4,7,4,5]
["Dec",60,4,13,10,4,5,null,null,null,"Dec",4,8,4,5]
[null,null,null,null,null,null,null,null,null,null,"Annual",{"$f":"AVERAGE(L7:L18)","v":5.583333333333333},{"$f":"MAX(M7:M18)","v":15},{"$f":"AVERAGE(N7:N18)","v":5.583333333333333},{"$f":"MAX(O7:O18)","v":9}]
[]
[null,null,null,null,null,null,null,null,null,{"$f":"+A6","v":2021},"mg/Nm3","Monthly 1/2 hourly mean","Monthly 1/2 hourly maximum","Monthly daily mean","Monthly daily maximum"]
[null,null,null,null,null,null,null,null,null,"A2","Jan",7,13,7,8]
[null,null,null,null,null,null,null,null,null,null,"Feb",6,10,6,8]
[null,null,null,null,null,null,null,null,null,null,"Mar",8,17,8,9]
[null,null,null,null,null,null,null,null,null,null,"Apr",8,12,8,9]
[null,null,null,null,null,null,null,null,null,null,"May",7,11,7,9]
[null,null,null,null,null,null,null,null,null,null,"Jun",8,10,8,9]
[null,null,null,null,null,null,null,null,null,null,"Jul",8,11,8,9]
[null,null,null,null,null,null,null,null,null,null,"Aug",8,12,8,9]
[null,null,null,null,null,null,null,null,null,null,"Sep",8,10,8,8]
[null,null,null,null,null,null,null,null,null,null,"Oct",3,7,3,4]
[null,null,null,null,null,null,null,null,null,null,"Nov",3,7,3,4]
[null,null,null,null,null,null,null,null,null,null,"Dec",4,13,4,5]
[null,null,null,null,null,null,null,null,null,null,"Annual",{"$f":"AVERAGE(L22:L33)","v":6.5},{"$f":"MAX(M22:M33)","v":17},{"$f":"AVERAGE(N22:N33)","v":6.5},{"$f":"MAX(O22:O33)","v":9}]
[]
[null,null,null,null,null,null,null,null,null,{"$f":"+A6","v":2021},"mg/Nm3","Monthly 1/2 hourly mean","Monthly 1/2 hourly maximum","Monthly daily mean","Monthly daily maximum"]
[null,null,null,null,null,null,null,null,null,"A3","Jan"]
[null,null,null,null,null,null,null,null,null,null,"Feb"]
[null,null,null,null,null,null,null,null,null,null,"Mar"]
[null,null,null,null,null,null,null,null,null,null,"Apr"]
[null,null,null,null,null,null,null,null,null,null,"May"]
[null,null,null,null,null,null,null,null,null,null,"Jun"]
[null,null,null,null,null,null,null,null,null,null,"Jul"]
[null,null,null,null,null,null,null,null,null,null,"Aug"]
[null,null,null,null,null,null,null,null,null,null,"Sep"]
[null,null,null,null,null,null,null,null,null,null,"Oct"]
[null,null,null,null,null,null,null,null,null,null,"Nov"]
["Comments :",null,null,null,null,null,null,null,null,null,"Dec"]
[null,null,null,null,null,null,null,null,null,null,"Annual",{"$f":"AVERAGE(L37:L48)","v":{"$error":"#DIV/0!"}},{"$f":"MAX(M37:M48)","v":0},{"$f":"AVERAGE(N37:N48)","v":{"$error":"#DIV/0!"}},{"$f":"MAX(O37:O48)","v":0}]
[]
[null,null,null,null,null,null,null,null,null,{"$f":"+A6","v":2021},"mg/Nm3","Monthly 1/2 hourly mean","Monthly 1/2 hourly maximum","Monthly daily mean","Monthly daily maximum"]
[null,null,null,null,null,null,null,null,null,"A4","Jan"]
[null,null,null,null,null,null,null,null,null,null,"Feb"]
[null,null,null,null,null,null,null,null,null,null,"Mar"]
[null,null,null,null,null,null,null,null,null,null,"Apr"]
[null,null,null,null,null,null,null,null,null,null,"May"]
[null,null,null,null,null,null,null,null,null,null,"Jun"]
[null,null,null,null,null,null,null,null,null,null,"Jul"]
[null,null,null,null,null,null,null,null,null,null,"Aug"]
[null,null,null,null,null,null,null,null,null,null,"Sep"]
[null,null,null,null,null,null,null,null,null,null,"Oct"]
[null,null,null,null,null,null,null,null,null,null,"Nov"]
[null,null,null,null,null,null,null,null,null,null,"Dec"]
[null,null,null,null,null,null,null,null,null,null,"Annual",{"$f":"AVERAGE(L52:L63)","v":{"$error":"#DIV/0!"}},{"$f":"MAX(M52:M63)","v":0},{"$f":"AVERAGE(N52:N63)","v":{"$error":"#DIV/0!"}},{"$f":"MAX(O52:O63)","v":0}]
[]
[null,null,null,null,null,null,null,null,null,{"$f":"+A6","v":2021},"mg/Nm3","Monthly 1/2 hourly mean","Monthly 1/2 hourly maximum","Monthly daily mean","Monthly daily maximum"]
[null,null,null,null,null,null,null,null,null,"A5","Jan"]
[null,null,null,null,null,null,null,null,null,null,"Feb"]
[null,null,null,null,null,null,null,null,null,null,"Mar"]
[null,null,null,null,null,null,null,null,null,null,"Apr"]
[null,null,null,null,null,null,null,null,null,null,"May"]
[null,null,null,null,null,null,null,null,null,null,"Jun"]
[null,null,null,null,null,null,null,null,null,null,"Jul"]
[null,null,null,null,null,null,null,null,null,null,"Aug"]
[null,null,null,null,null,null,null,null,null,null,"Sep"]
[null,null,null,null,null,null,null,null,null,null,"Oct"]
[null,null,null,null,null,null,null,null,null,null,"Nov"]
[null,null,null,null,null,null,null,null,null,null,"Dec"]
[null,null,null,null,null,null,null,null,null,null,"Annual",{"$f":"AVERAGE(L67:L78)","v":{"$error":"#DIV/0!"}},{"$f":"MAX(M67:M78)","v":0},{"$f":"AVERAGE(N67:N78)","v":{"$error":"#DIV/0!"}},{"$f":"MAX(O67:O78)","v":0}]

{"sheet":"SO2","index":15,"n_rows":79,"n_cols":17,"rows_kept":79,"cut":false,"hidden":false,"merged":[[3,16,7,18],[9,16,11,18],[12,16,15,18],[66,9,78,9],[4,1,4,3],[4,4,4,6],[4,9,4,14],[6,9,18,9],[21,9,33,9],[36,9,48,9],[47,0,47,6],[48,0,51,6],[51,9,63,9]]}
[{"$f":"+'Cover Page'!$B$29","v":"Annual Performance Report 2021"},null,null,null,{"$f":"+'Cover Page'!$B$33","v":"SUEZ R&R Wilton 11 EfW"}]
[]
["Monitoring of Sulphur dioxide emissions",null,null,"Whole Installation",null,null,"See  Notes in Cell Q3",null,null,{"$f":"+A3","v":"Monitoring of Sulphur dioxide emissions"},null,null,null,"Per Combustion Line",null,null,"Notes:"]
[null,null,null,null,null,null,null,null,null,null,null,null,null,null,null,null,"User to add logic to complete Whole installation, Table A5:G18. From the data in Per Combustion Line, Table J6:O79, subject to No. of lines installed"]
["mg/Nm3","1/2 Hourly Reference Periods",null,null,"Daily Reference Periods"]
[{"$f":"+'Cover Page'!C39","v":2021},"1/2 hourly SO2 ELV","Monthly 1/2 hourly mean","Highest 1/2 hourly maximum","Daily SO2 ELV","Monthly daily mean","Highest daily maximum",null,null,{"$f":"+A6","v":2021},"mg/Nm3","Monthly 1/2 hourly mean","Monthly 1/2 hourly maximum","Monthly daily mean","Monthly daily maximum"]
["Jan",200,{"$f":"AVERAGE(L7,L22)","v":21.5},{"$f":"MAX(M7,M22)","v":53},50,{"$f":"AVERAGE(N7,N22)","v":21.5},{"$f":"MAX(O7,O22)","v":31},null,null,"A1","Jan",20,53,20,31]
["Feb",200,{"$f":"AVERAGE(L8,L23)","v":25.5},{"$f":"MAX(M8,M23)","v":53},50,{"$f":"AVERAGE(N8,N23)","v":25.5},{"$f":"MAX(O8,O23)","v":36},null,null,null,"Feb",24,52,24,36]
["Mar",200,27.5,58,50,27.5,31,null,null,null,"Mar",27,49,27,31,null,"Whole Installation table A5:G18:"]
["Apr",200,26,61,50,26,39,null,null,null,"Apr",23,56,23,39,null,"Mean: for 1/2 hourly and daily periods calculate mean of values across all operational combustion lines for the month"]
["May",200,24,53,50,24,37,null,null,null,"May",25,53,25,37]
["Jun",200,23.5,58,50,23.5,29,null,null,null,"Jun",23,58,23,29]
["Jul",200,25,52,50,25,31,null,null,null,"Jul",27,52,27,31,null,"Maximum: for 1/2 hourly and daily periods use the highest value across all operational combustion lines for the month"]
["Aug",200,24,65,50,24,41,null,null,null,"Aug",22,55,22,41]
["Sep",200,32,119,50,32,45,null,null,null,"Sep",38,119,38,45]
["Oct",200,34,76,50,34,47,null,null,null,"Oct",37,74,37,47]
["Nov",200,34,77,50,34,42,null,null,null,"Nov",36,54,36,42]
["Dec",200,29,88,50,29,41,null,null,null,"Dec",28,52,28,39]
[null,null,null,null,null,null,null,null,null,null,"Annual",{"$f":"AVERAGE(L7:L18)","v":27.5},{"$f":"MAX(M7:M18)","v":119},{"$f":"AVERAGE(N7:N18)","v":27.5},{"$f":"MAX(O7:O18)","v":47}]
[]
[null,null,null,null,null,null,null,null,null,{"$f":"+A6","v":2021},"mg/Nm3","Monthly 1/2 hourly mean","Monthly 1/2 hourly maximum","Monthly daily mean","Monthly daily maximum"]
[null,null,null,null,null,null,null,null,null,"A2","Jan",23,49,23,30]
[null,null,null,null,null,null,null,null,null,null,"Feb",27,53,27,33]
[null,null,null,null,null,null,null,null,null,null,"Mar",28,58,28,30]
[null,null,null,null,null,null,null,null,null,null,"Apr",29,61,29,34]
[null,null,null,null,null,null,null,null,null,null,"May",23,50,23,33]
[null,null,null,null,null,null,null,null,null,null,"Jun",24,58,24,27]
[null,null,null,null,null,null,null,null,null,null,"Jul",23,47,23,30]
[null,null,null,null,null,null,null,null,null,null,"Aug",26,65,26,31]
[null,null,null,null,null,null,null,null,null,null,"Sep",26,38,26,29]
[null,null,null,null,null,null,null,null,null,null,"Oct",31,76,31,40]
[null,null,null,null,null,null,null,null,null,null,"Nov",32,77,32,40]
[null,null,null,null,null,null,null,null,null,null,"Dec",30,88,30,41]
[null,null,null,null,null,null,null,null,null,null,"Annual",{"$f":"AVERAGE(L22:L33)","v":26.833333333333332},{"$f":"MAX(M22:M33)","v":88},{"$f":"AVERAGE(N22:N33)","v":26.833333333333332},{"$f":"MAX(O22:O33)","v":41}]
[]
[null,null,null,null,null,null,null,null,null,{"$f":"+A6","v":2021},"mg/Nm3","Monthly 1/2 hourly mean","Monthly 1/2 hourly maximum","Monthly daily mean","Monthly daily maximum"]
[null,null,null,null,null,null,null,null,null,"A3","Jan"]
[null,null,null,null,null,null,null,null,null,null,"Feb"]
[null,null,null,null,null,null,null,null,null,null,"Mar"]
[null,null,null,null,null,null,null,null,null,null,"Apr"]
[null,null,null,null,null,null,null,null,null,null,"May"]
[null,null,null,null,null,null,null,null,null,null,"Jun"]
[null,null,null,null,null,null,null,null,null,null,"Jul"]
[null,null,null,null,null,null,null,null,null,null,"Aug"]
[null,null,null,null,null,null,null,null,null,null,"Sep"]
[null,null,null,null,null,null,null,null,null,null,"Oct"]
[null,null,null,null,null,null,null,null,null,null,"Nov"]
["Comments :",null,null,null,null,null,null,null,null,null,"Dec"]
[null,null,null,null,null,null,null,null,null,null,"Annual",{"$f":"AVERAGE(L37:L48)","v":{"$error":"#DIV/0!"}},{"$f":"MAX(M37:M48)","v":0},{"$f":"AVERAGE(N37:N48)","v":{"$error":"#DIV/0!"}},{"$f":"MAX(O37:O48)","v":0}]
[]
[null,null,null,null,null,null,null,null,null,{"$f":"+A6","v":2021},"mg/Nm3","Monthly 1/2 hourly mean","Monthly 1/2 hourly maximum","Monthly daily mean","Monthly daily maximum"]
[null,null,null,null,null,null,null,null,null,"A4","Jan"]
[null,null,null,null,null,null,null,null,null,null,"Feb"]
[null,null,null,null,null,null,null,null,null,null,"Mar"]
[null,null,null,null,null,null,null,null,null,null,"Apr"]
[null,null,null,null,null,null,null,null,null,null,"May"]
[null,null,null,null,null,null,null,null,null,null,"Jun"]
[null,null,null,null,null,null,null,null,null,null,"Jul"]
[null,null,null,null,null,null,null,null,null,null,"Aug"]
[null,null,null,null,null,null,null,null,null,null,"Sep"]
[null,null,null,null,null,null,null,null,null,null,"Oct"]
[null,null,null,null,null,null,null,null,null,null,"Nov"]
[null,null,null,null,null,null,null,null,null,null,"Dec"]
[null,null,null,null,null,null,null,null,null,null,"Annual",{"$f":"AVERAGE(L52:L63)","v":{"$error":"#DIV/0!"}},{"$f":"MAX(M52:M63)","v":0},{"$f":"AVERAGE(N52:N63)","v":{"$error":"#DIV/0!"}},{"$f":"MAX(O52:O63)","v":0}]
[]
[null,null,null,null,null,null,null,null,null,{"$f":"+A6","v":2021},"mg/Nm3","Monthly 1/2 hourly mean","Monthly 1/2 hourly maximum","Monthly daily mean","Monthly daily maximum"]
[null,null,null,null,null,null,null,null,null,"A5","Jan"]
[null,null,null,null,null,null,null,null,null,null,"Feb"]
[null,null,null,null,null,null,null,null,null,null,"Mar"]
[null,null,null,null,null,null,null,null,null,null,"Apr"]
[null,null,null,null,null,null,null,null,null,null,"May"]
[null,null,null,null,null,null,null,null,null,null,"Jun"]
[null,null,null,null,null,null,null,null,null,null,"Jul"]
[null,null,null,null,null,null,null,null,null,null,"Aug"]
[null,null,null,null,null,null,null,null,null,null,"Sep"]
[null,null,null,null,null,null,null,null,null,null,"Oct"]
[null,null,null,null,null,null,null,null,null,null,"Nov"]
[null,null,null,null,null,null,null,null,null,null,"Dec"]
[null,null,null,null,null,null,null,null,null,null,"Annual",{"$f":"AVERAGE(L67:L78)","v":{"$error":"#DIV/0!"}},{"$f":"MAX(M67:M78)","v":0},{"$f":"AVERAGE(N67:N78)","v":{"$error":"#DIV/0!"}},{"$f":"MAX(O67:O78)","v":0}]

{"sheet":"NOx","index":16,"n_rows":79,"n_cols":17,"rows_kept":79,"cut":false,"hidden":false,"merged":[[3,16,7,18],[9,16,11,18],[12,16,15,18],[66,9,78,9],[4,1,4,3],[4,4,4,6],[4,9,4,14],[6,9,18,9],[21,9,33,9],[36,9,48,9],[47,0,47,6],[48,0,51,6],[51,9,63,9]]}
[{"$f":"+'Cover Page'!$B$29","v":"Annual Performance Report 2021"},null,null,null,{"$f":"+'Cover Page'!$B$33","v":"SUEZ R&R Wilton 11 EfW"}]
[]
["Monitoring of Oxides of Nitrogen emissions",null,null,"Whole Installation",null,null,"See  Notes in Cell Q3",null,null,{"$f":"+A3","v":"Monitoring of Oxides of Nitrogen emissions"},null,null,null,"Per Combustion Line",null,null,"Notes:"]
[null,null,null,null,null,null,null,null,null,null,null,null,null,null,null,null,"User to add logic to complete Whole installation, Table A5:G18. From the data in Per Combustion Line, Table J6:O79, subject to No. of lines installed"]
["mg/Nm3","1/2 Hourly Reference Periods",null,null,"Daily Reference Periods"]
[{"$f":"+'Cover Page'!C39","v":2021},"1/2 hourly NOx ELV","Monthly 1/2 hourly mean","Highest 1/2 hourly maximum","Daily NOx ELV","Monthly daily mean","Highest daily maximum",null,null,{"$f":"+A6","v":2021},"mg/Nm3","Monthly 1/2 hourly mean","Monthly 1/2 hourly maximum","Monthly daily mean","Monthly daily maximum"]
["Jan",400,{"$f":"AVERAGE(L7,L22)","v":169.5},{"$f":"MAX(M7,M22)","v":243},200,{"$f":"AVERAGE(N7,N22)","v":169.5},{"$f":"MAX(O7,O22)","v":183},null,null,"A1","Jan",168,243,168,183]
["Feb",400,{"$f":"AVERAGE(L8,L23)","v":172},{"$f":"MAX(M8,M23)","v":228},200,{"$f":"AVERAGE(N8,N23)","v":172},{"$f":"MAX(O8,O23)","v":182},null,null,null,"Feb",169,213,169,177]
["Mar",400,171.5,222,200,171.5,178,null,null,null,"Mar",169,200,169,170,null,"Whole Installation table A5:G18:"]
["Apr",400,172,224,200,172,185,null,null,null,"Apr",171,224,171,185,null,"Mean: for 1/2 hourly and daily periods calculate mean of values across all operational combustion lines for the month"]
["May",400,170.5,202,200,170.5,177,null,null,null,"May",168,195,168,169]
["Jun",400,171.5,226,200,171.5,180,null,null,null,"Jun",168,226,168,180]
["Jul",400,174.5,219,200,174.5,185,null,null,null,"Jul",174,219,174,185,null,"Maximum: for 1/2 hourly and daily periods use the highest value across all operational combustion lines for the month"]
["Aug",400,174.5,214,200,174.5,183,null,null,null,"Aug",173,213,173,183]
["Sep",400,180.5,236,200,180.5,194,null,null,null,"Sep",182,236,182,194]
["Oct",400,175,313,200,175,195,null,null,null,"Oct",176,313,176,195]
["Nov",400,170.5,212,200,170.5,174,null,null,null,"Nov",168,212,168,171]
["Dec",400,172,298,200,172,179,null,null,null,"Dec",170,253,170,175]
[null,null,null,null,null,null,null,null,null,null,"Annual",{"$f":"AVERAGE(L7:L18)","v":171.33333333333334},{"$f":"MAX(M7:M18)","v":313},{"$f":"AVERAGE(N7:N18)","v":171.33333333333334},{"$f":"MAX(O7:O18)","v":195}]
[]
[null,null,null,null,null,null,null,null,null,{"$f":"+A6","v":2021},"mg/Nm3","Monthly 1/2 hourly mean","Monthly 1/2 hourly maximum","Monthly daily mean","Monthly daily maximum"]
[null,null,null,null,null,null,null,null,null,"A2","Jan",171,201,171,175]
[null,null,null,null,null,null,null,null,null,null,"Feb",175,228,175,182]
[null,null,null,null,null,null,null,null,null,null,"Mar",174,222,174,178]
[null,null,null,null,null,null,null,null,null,null,"Apr",173,197,173,176]
[null,null,null,null,null,null,null,null,null,null,"May",173,202,173,177]
[null,null,null,null,null,null,null,null,null,null,"Jun",175,200,175,179]
[null,null,null,null,null,null,null,null,null,null,"Jul",175,212,175,183]
[null,null,null,null,null,null,null,null,null,null,"Aug",176,214,176,183]
[null,null,null,null,null,null,null,null,null,null,"Sep",179,215,179,184]
[null,null,null,null,null,null,null,null,null,null,"Oct",174,267,174,181]
[null,null,null,null,null,null,null,null,null,null,"Nov",173,203,173,174]
[null,null,null,null,null,null,null,null,null,null,"Dec",174,298,174,179]
[null,null,null,null,null,null,null,null,null,null,"Annual",{"$f":"AVERAGE(L22:L33)","v":174.33333333333334},{"$f":"MAX(M22:M33)","v":298},{"$f":"AVERAGE(N22:N33)","v":174.33333333333334},{"$f":"MAX(O22:O33)","v":184}]
[]
[null,null,null,null,null,null,null,null,null,{"$f":"+A6","v":2021},"mg/Nm3","Monthly 1/2 hourly mean","Monthly 1/2 hourly maximum","Monthly daily mean","Monthly daily maximum"]
[null,null,null,null,null,null,null,null,null,"A3","Jan"]
[null,null,null,null,null,null,null,null,null,null,"Feb"]
[null,null,null,null,null,null,null,null,null,null,"Mar"]
[null,null,null,null,null,null,null,null,null,null,"Apr"]
[null,null,null,null,null,null,null,null,null,null,"May"]
[null,null,null,null,null,null,null,null,null,null,"Jun"]
[null,null,null,null,null,null,null,null,null,null,"Jul"]
[null,null,null,null,null,null,null,null,null,null,"Aug"]
[null,null,null,null,null,null,null,null,null,null,"Sep"]
[null,null,null,null,null,null,null,null,null,null,"Oct"]
[null,null,null,null,null,null,null,null,null,null,"Nov"]
["Comments :",null,null,null,null,null,null,null,null,null,"Dec"]
[null,null,null,null,null,null,null,null,null,null,"Annual",{"$f":"AVERAGE(L37:L48)","v":{"$error":"#DIV/0!"}},{"$f":"MAX(M37:M48)","v":0},{"$f":"AVERAGE(N37:N48)","v":{"$error":"#DIV/0!"}},{"$f":"MAX(O37:O48)","v":0}]
[]
[null,null,null,null,null,null,null,null,null,{"$f":"+A6","v":2021},"mg/Nm3","Monthly 1/2 hourly mean","Monthly 1/2 hourly maximum","Monthly daily mean","Monthly daily maximum"]
[null,null,null,null,null,null,null,null,null,"A4","Jan"]
[null,null,null,null,null,null,null,null,null,null,"Feb"]
[null,null,null,null,null,null,null,null,null,null,"Mar"]
[null,null,null,null,null,null,null,null,null,null,"Apr"]
[null,null,null,null,null,null,null,null,null,null,"May"]
[null,null,null,null,null,null,null,null,null,null,"Jun"]
[null,null,null,null,null,null,null,null,null,null,"Jul"]
[null,null,null,null,null,null,null,null,null,null,"Aug"]
[null,null,null,null,null,null,null,null,null,null,"Sep"]
[null,null,null,null,null,null,null,null,null,null,"Oct"]
[null,null,null,null,null,null,null,null,null,null,"Nov"]
[null,null,null,null,null,null,null,null,null,null,"Dec"]
[null,null,null,null,null,null,null,null,null,null,"Annual",{"$f":"AVERAGE(L52:L63)","v":{"$error":"#DIV/0!"}},{"$f":"MAX(M52:M63)","v":0},{"$f":"AVERAGE(N52:N63)","v":{"$error":"#DIV/0!"}},{"$f":"MAX(O52:O63)","v":0}]
[]
[null,null,null,null,null,null,null,null,null,{"$f":"+A6","v":2021},"mg/Nm3","Monthly 1/2 hourly mean","Monthly 1/2 hourly maximum","Monthly daily mean","Monthly daily maximum"]
[null,null,null,null,null,null,null,null,null,"A5","Jan"]
[null,null,null,null,null,null,null,null,null,null,"Feb"]
[null,null,null,null,null,null,null,null,null,null,"Mar"]
[null,null,null,null,null,null,null,null,null,null,"Apr"]
[null,null,null,null,null,null,null,null,null,null,"May"]
[null,null,null,null,null,null,null,null,null,null,"Jun"]
[null,null,null,null,null,null,null,null,null,null,"Jul"]
[null,null,null,null,null,null,null,null,null,null,"Aug"]
[null,null,null,null,null,null,null,null,null,null,"Sep"]
[null,null,null,null,null,null,null,null,null,null,"Oct"]
[null,null,null,null,null,null,null,null,null,null,"Nov"]
[null,null,null,null,null,null,null,null,null,null,"Dec"]
[null,null,null,null,null,null,null,null,null,null,"Annual",{"$f":"AVERAGE(L67:L78)","v":{"$error":"#DIV/0!"}},{"$f":"MAX(M67:M78)","v":0},{"$f":"AVERAGE(N67:N78)","v":{"$error":"#DIV/0!"}},{"$f":"MAX(O67:O78)","v":0}]

{"sheet":"TOC","index":17,"n_rows":79,"n_cols":17,"rows_kept":79,"cut":false,"hidden":false,"merged":[[3,16,7,18],[9,16,11,18],[12,16,15,18],[66,9,78,9],[4,1,4,3],[4,4,4,6],[4,9,4,14],[6,9,18,9],[21,9,33,9],[36,9,48,9],[47,0,47,6],[48,0,51,6],[51,9,63,9]]}
[{"$f":"+'Cover Page'!$B$29","v":"Annual Performance Report 2021"},null,null,null,{"$f":"+'Cover Page'!$B$33","v":"SUEZ R&R Wilton 11 EfW"}]
[]
["Monitoring of Total organic carbon emissions",null,null,"Whole Installation",null,null,"See  Notes in Cell Q3",null,null,{"$f":"+A3","v":"Monitoring of Total organic carbon emissions"},null,null,null,"Per Combustion Line",null,null,"Notes:"]
[null,null,null,null,null,null,null,null,null,null,null,null,null,null,null,null,"User to add logic to complete Whole installation, Table A5:G18. From the data in Per Combustion Line, Table J6:O79, subject to No. of lines installed"]
["mg/Nm3","1/2 Hourly Reference Periods",null,null,"Daily Reference Periods"]
[{"$f":"+'Cover Page'!C39","v":2021},"1/2 hourly TOC ELV","Monthly 1/2 hourly mean","Highest 1/2 hourly maximum","Daily TOC ELV","Monthly daily mean","Highest daily maximum",null,null,{"$f":"+A6","v":2021},"mg/Nm3","Monthly 1/2 hourly mean","Monthly 1/2 hourly maximum","Monthly daily mean","Monthly daily maximum"]
["Jan",20,{"$f":"AVERAGE(L7,L22)","v":0.5},{"$f":"MAX(M7,M22)","v":2.2000000000000002},10,{"$f":"AVERAGE(N7,N22)","v":0.5},{"$f":"MAX(O7,O22)","v":0.7},null,null,"A1","Jan",0.6,1.9,0.6,0.7]
["Feb",20,{"$f":"AVERAGE(L8,L23)","v":0.44999999999999996},{"$f":"MAX(M8,M23)","v":4},10,{"$f":"AVERAGE(N8,N23)","v":0.44999999999999996},{"$f":"MAX(O8,O23)","v":0.7},null,null,null,"Feb",0.6,4,0.6,0.7]
["Mar",20,0.5,3.9,10,0.5,0.8,null,null,null,"Mar",0.6,3.3,0.6,0.7,null,"Whole Installation table A5:G18:"]
["Apr",20,0.30000000000000004,5.0999999999999996,10,0.30000000000000004,0.7,null,null,null,"Apr",0.2,5.0999999999999996,0.2,0.7,null,"Mean: for 1/2 hourly and daily periods calculate mean of values across all operational combustion lines for the month"]
["May",20,0.5,5.0999999999999996,10,0.5,0.8,null,null,null,"May",0.6,4.3,0.6,0.8]
["Jun",20,0.60000000000000009,6.2,10,0.5,0.9,null,null,null,"Jun",0.8,6.2,0.6,0.9]
["Jul",20,0.5,1.4,10,0.5,0.6,null,null,null,"Jul",0.6,1.4,0.6,0.6,null,"Maximum: for 1/2 hourly and daily periods use the highest value across all operational combustion lines for the month"]
["Aug",20,0.5,3.7,10,0.5,0.7,null,null,null,"Aug",0.6,3.7,0.6,0.7]
["Sep",20,0.45,1.4,10,0.45,0.6,null,null,null,"Sep",0.5,1.2,0.5,0.6]
["Oct",20,0.5,2.6,10,0.5,0.6,null,null,null,"Oct",0.6,2.6,0.6,0.6]
["Nov",20,0.5,2.5,10,0.5,0.7,null,null,null,"Nov",0.6,2.5,0.6,0.7]
["Dec",20,0.44999999999999996,2.1,10,0.44999999999999996,0.6,null,null,null,"Dec",0.6,2.1,0.6,0.6]
[null,null,null,null,null,null,null,null,null,null,"Annual",{"$f":"AVERAGE(L7:L18)","v":0.57499999999999984},{"$f":"MAX(M7:M18)","v":6.2},{"$f":"AVERAGE(N7:N18)","v":0.55833333333333324},{"$f":"MAX(O7:O18)","v":0.9}]
[]
[null,null,null,null,null,null,null,null,null,{"$f":"+A6","v":2021},"mg/Nm3","Monthly 1/2 hourly mean","Monthly 1/2 hourly maximum","Monthly daily mean","Monthly daily maximum"]
[null,null,null,null,null,null,null,null,null,"A2","Jan",0.4,2.2000000000000002,0.4,0.4]
[null,null,null,null,null,null,null,null,null,null,"Feb",0.3,1.8,0.3,0.5]
[null,null,null,null,null,null,null,null,null,null,"Mar",0.4,3.9,0.4,0.8]
[null,null,null,null,null,null,null,null,null,null,"Apr",0.4,1.5,0.4,0.6]
[null,null,null,null,null,null,null,null,null,null,"May",0.4,5.0999999999999996,0.4,0.6]
[null,null,null,null,null,null,null,null,null,null,"Jun",0.4,3.5,0.4,0.6]
[null,null,null,null,null,null,null,null,null,null,"Jul",0.4,1.4,0.4,0.6]
[null,null,null,null,null,null,null,null,null,null,"Aug",0.4,1.5,0.4,0.6]
[null,null,null,null,null,null,null,null,null,null,"Sep",0.4,1.4,0.4,0.4]
[null,null,null,null,null,null,null,null,null,null,"Oct",0.4,1.1000000000000001,0.4,0.5]
[null,null,null,null,null,null,null,null,null,null,"Nov",0.4,0.5,0.4,0.5]
[null,null,null,null,null,null,null,null,null,null,"Dec",0.3,1.7,0.3,0.5]
[null,null,null,null,null,null,null,null,null,null,"Annual",{"$f":"AVERAGE(L22:L33)","v":0.3833333333333333},{"$f":"MAX(M22:M33)","v":5.0999999999999996},{"$f":"AVERAGE(N22:N33)","v":0.3833333333333333},{"$f":"MAX(O22:O33)","v":0.8}]
[]
[null,null,null,null,null,null,null,null,null,{"$f":"+A6","v":2021},"mg/Nm3","Monthly 1/2 hourly mean","Monthly 1/2 hourly maximum","Monthly daily mean","Monthly daily maximum"]
[null,null,null,null,null,null,null,null,null,"A3","Jan"]
[null,null,null,null,null,null,null,null,null,null,"Feb"]
[null,null,null,null,null,null,null,null,null,null,"Mar"]
[null,null,null,null,null,null,null,null,null,null,"Apr"]
[null,null,null,null,null,null,null,null,null,null,"May"]
[null,null,null,null,null,null,null,null,null,null,"Jun"]
[null,null,null,null,null,null,null,null,null,null,"Jul"]
[null,null,null,null,null,null,null,null,null,null,"Aug"]
[null,null,null,null,null,null,null,null,null,null,"Sep"]
[null,null,null,null,null,null,null,null,null,null,"Oct"]
[null,null,null,null,null,null,null,null,null,null,"Nov"]
["Comments :",null,null,null,null,null,null,null,null,null,"Dec"]
[null,null,null,null,null,null,null,null,null,null,"Annual",{"$f":"AVERAGE(L37:L48)","v":{"$error":"#DIV/0!"}},{"$f":"MAX(M37:M48)","v":0},{"$f":"AVERAGE(N37:N48)","v":{"$error":"#DIV/0!"}},{"$f":"MAX(O37:O48)","v":0}]
[]
[null,null,null,null,null,null,null,null,null,{"$f":"+A6","v":2021},"mg/Nm3","Monthly 1/2 hourly mean","Monthly 1/2 hourly maximum","Monthly daily mean","Monthly daily maximum"]
[null,null,null,null,null,null,null,null,null,"A4","Jan"]
[null,null,null,null,null,null,null,null,null,null,"Feb"]
[null,null,null,null,null,null,null,null,null,null,"Mar"]
[null,null,null,null,null,null,null,null,null,null,"Apr"]
[null,null,null,null,null,null,null,null,null,null,"May"]
[null,null,null,null,null,null,null,null,null,null,"Jun"]
[null,null,null,null,null,null,null,null,null,null,"Jul"]
[null,null,null,null,null,null,null,null,null,null,"Aug"]
[null,null,null,null,null,null,null,null,null,null,"Sep"]
[null,null,null,null,null,null,null,null,null,null,"Oct"]
[null,null,null,null,null,null,null,null,null,null,"Nov"]
[null,null,null,null,null,null,null,null,null,null,"Dec"]
[null,null,null,null,null,null,null,null,null,null,"Annual",{"$f":"AVERAGE(L52:L63)","v":{"$error":"#DIV/0!"}},{"$f":"MAX(M52:M63)","v":0},{"$f":"AVERAGE(N52:N63)","v":{"$error":"#DIV/0!"}},{"$f":"MAX(O52:O63)","v":0}]
[]
[null,null,null,null,null,null,null,null,null,{"$f":"+A6","v":2021},"mg/Nm3","Monthly 1/2 hourly mean","Monthly 1/2 hourly maximum","Monthly daily mean","Monthly daily maximum"]
[null,null,null,null,null,null,null,null,null,"A5","Jan"]
[null,null,null,null,null,null,null,null,null,null,"Feb"]
[null,null,null,null,null,null,null,null,null,null,"Mar"]
[null,null,null,null,null,null,null,null,null,null,"Apr"]
[null,null,null,null,null,null,null,null,null,null,"May"]
[null,null,null,null,null,null,null,null,null,null,"Jun"]
[null,null,null,null,null,null,null,null,null,null,"Jul"]
[null,null,null,null,null,null,null,null,null,null,"Aug"]
[null,null,null,null,null,null,null,null,null,null,"Sep"]
[null,null,null,null,null,null,null,null,null,null,"Oct"]
[null,null,null,null,null,null,null,null,null,null,"Nov"]
[null,null,null,null,null,null,null,null,null,null,"Dec"]
[null,null,null,null,null,null,null,null,null,null,"Annual",{"$f":"AVERAGE(L67:L78)","v":{"$error":"#DIV/0!"}},{"$f":"MAX(M67:M78)","v":0},{"$f":"AVERAGE(N67:N78)","v":{"$error":"#DIV/0!"}},{"$f":"MAX(O67:O78)","v":0}]

{"sheet":"Particulates","index":18,"n_rows":79,"n_cols":17,"rows_kept":79,"cut":false,"hidden":false,"merged":[[3,16,7,18],[9,16,11,18],[12,16,15,18],[66,9,78,9],[4,1,4,3],[4,4,4,6],[4,9,4,14],[6,9,18,9],[21,9,33,9],[36,9,48,9],[47,0,47,6],[48,0,51,6],[51,9,63,9]]}
[{"$f":"+'Cover Page'!$B$29","v":"Annual Performance Report 2021"},null,null,null,{"$f":"+'Cover Page'!$B$33","v":"SUEZ R&R Wilton 11 EfW"}]
[]
["Monitoring of Particulate matter emissions",null,null,"Whole Installation",null,null,"See  Notes in Cell Q3",null,null,{"$f":"+A3","v":"Monitoring of Particulate matter emissions"},null,null,null,"Per Combustion Line",null,null,"Notes:"]
[null,null,null,null,null,null,null,null,null,null,null,null,null,null,null,null,"User to add logic to complete Whole installation, Table A5:G18. From the data in Per Combustion Line, Table J6:O79, subject to No. of lines installed"]
["mg/Nm3","1/2 Hourly Reference Periods",null,null,"Daily Reference Periods"]
[{"$f":"+'Cover Page'!C39","v":2021},"1/2 hourly PM ELV","Monthly 1/2 hourly mean","Highest 1/2 hourly maximum","Daily PM ELV","Monthly daily mean","Highest daily maximum",null,null,{"$f":"+A6","v":2021},"mg/Nm3","Monthly 1/2 hourly mean","Monthly 1/2 hourly maximum","Monthly daily mean","Monthly daily maximum"]
["Jan",30,{"$f":"AVERAGE(L7,L22)","v":0.4},{"$f":"MAX(M7,M22)","v":0.7},10,{"$f":"AVERAGE(N7,N22)","v":0.4},{"$f":"MAX(O7,O22)","v":0.4},null,null,"A1","Jan",0.4,0.7,0.4,0.4]
["Feb",30,{"$f":"AVERAGE(L8,L23)","v":0.4},{"$f":"MAX(M8,M23)","v":0.7},10,{"$f":"AVERAGE(N8,N23)","v":0.4},{"$f":"MAX(O8,O23)","v":0.5},null,null,null,"Feb",0.4,0.4,0.4,0.4]
["Mar",30,0.4,0.5,10,0.4,0.4,null,null,null,"Mar",0.4,0.5,0.4,0.4,null,"Whole Installation table A5:G18:"]
["Apr",30,0.4,1.4,10,0.4,0.5,null,null,null,"Apr",0.4,1.4,0.4,0.5,null,"Mean: for 1/2 hourly and daily periods calculate mean of values across all operational combustion lines for the month"]
["May",30,0.4,0.7,10,0.4,0.4,null,null,null,"May",0.4,0.7,0.4,0.4]
["Jun",30,0.35,1.4,10,0.35,0.4,null,null,null,"Jun",0.3,1.4,0.3,0.4]
["Jul",30,0.4,0.5,10,0.4,0.4,null,null,null,"Jul",0.4,0.5,0.4,0.4,null,"Maximum: for 1/2 hourly and daily periods use the highest value across all operational combustion lines for the month"]
["Aug",30,0.4,0.7,10,0.4,0.4,null,null,null,"Aug",0.4,0.6,0.4,0.4]
["Sep",30,0.45,6.1,10,0.45,0.9,null,null,null,"Sep",0.5,6.1,0.5,0.9]
["Oct",30,0.4,2.6,10,0.4,0.5,null,null,null,"Oct",0.4,0.5,0.4,0.4]
["Nov",30,0.4,0.9,10,0.4,0.4,null,null,null,"Nov",0.4,0.9,0.4,0.4]
["Dec",30,0.4,4.7,10,0.4,0.5,null,null,null,"Dec",0.4,1.1000000000000001,0.4,0.5]
[null,null,null,null,null,null,null,null,null,null,"Annual",{"$f":"AVERAGE(L7:L18)","v":0.39999999999999997},{"$f":"MAX(M7:M18)","v":6.1},{"$f":"AVERAGE(N7:N18)","v":0.39999999999999997},{"$f":"MAX(O7:O18)","v":0.9}]
[]
[null,null,null,null,null,null,null,null,null,{"$f":"+A6","v":2021},"mg/Nm3","Monthly 1/2 hourly mean","Monthly 1/2 hourly maximum","Monthly daily mean","Monthly daily maximum"]
[null,null,null,null,null,null,null,null,null,"A2","Jan",0.4,0.5,0.4,0.4]
[null,null,null,null,null,null,null,null,null,null,"Feb",0.4,0.7,0.4,0.5]
[null,null,null,null,null,null,null,null,null,null,"Mar",0.4,0.5,0.4,0.4]
[null,null,null,null,null,null,null,null,null,null,"Apr",0.4,0.5,0.4,0.4]
[null,null,null,null,null,null,null,null,null,null,"May",0.4,0.5,0.4,0.4]
[null,null,null,null,null,null,null,null,null,null,"Jun",0.4,0.6,0.4,0.4]
[null,null,null,null,null,null,null,null,null,null,"Jul",0.4,0.5,0.4,0.4]
[null,null,null,null,null,null,null,null,null,null,"Aug",0.4,0.7,0.4,0.4]
[null,null,null,null,null,null,null,null,null,null,"Sep",0.4,0.6,0.4,0.4]
[null,null,null,null,null,null,null,null,null,null,"Oct",0.4,2.6,0.4,0.5]
[null,null,null,null,null,null,null,null,null,null,"Nov",0.4,0.7,0.4,0.4]
[null,null,null,null,null,null,null,null,null,null,"Dec",0.4,4.7,0.4,0.4]
[null,null,null,null,null,null,null,null,null,null,"Annual",{"$f":"AVERAGE(L22:L33)","v":0.39999999999999997},{"$f":"MAX(M22:M33)","v":4.7},{"$f":"AVERAGE(N22:N33)","v":0.39999999999999997},{"$f":"MAX(O22:O33)","v":0.5}]
[]
[null,null,null,null,null,null,null,null,null,{"$f":"+A6","v":2021},"mg/Nm3","Monthly 1/2 hourly mean","Monthly 1/2 hourly maximum","Monthly daily mean","Monthly daily maximum"]
[null,null,null,null,null,null,null,null,null,"A3","Jan"]
[null,null,null,null,null,null,null,null,null,null,"Feb"]
[null,null,null,null,null,null,null,null,null,null,"Mar"]
[null,null,null,null,null,null,null,null,null,null,"Apr"]
[null,null,null,null,null,null,null,null,null,null,"May"]
[null,null,null,null,null,null,null,null,null,null,"Jun"]
[null,null,null,null,null,null,null,null,null,null,"Jul"]
[null,null,null,null,null,null,null,null,null,null,"Aug"]
[null,null,null,null,null,null,null,null,null,null,"Sep"]
[null,null,null,null,null,null,null,null,null,null,"Oct"]
[null,null,null,null,null,null,null,null,null,null,"Nov"]
["Comments :",null,null,null,null,null,null,null,null,null,"Dec"]
[null,null,null,null,null,null,null,null,null,null,"Annual",{"$f":"AVERAGE(L37:L48)","v":{"$error":"#DIV/0!"}},{"$f":"MAX(M37:M48)","v":0},{"$f":"AVERAGE(N37:N48)","v":{"$error":"#DIV/0!"}},{"$f":"MAX(O37:O48)","v":0}]
[]
[null,null,null,null,null,null,null,null,null,{"$f":"+A6","v":2021},"mg/Nm3","Monthly 1/2 hourly mean","Monthly 1/2 hourly maximum","Monthly daily mean","Monthly daily maximum"]
[null,null,null,null,null,null,null,null,null,"A4","Jan"]
[null,null,null,null,null,null,null,null,null,null,"Feb"]
[null,null,null,null,null,null,null,null,null,null,"Mar"]
[null,null,null,null,null,null,null,null,null,null,"Apr"]
[null,null,null,null,null,null,null,null,null,null,"May"]
[null,null,null,null,null,null,null,null,null,null,"Jun"]
[null,null,null,null,null,null,null,null,null,null,"Jul"]
[null,null,null,null,null,null,null,null,null,null,"Aug"]
[null,null,null,null,null,null,null,null,null,null,"Sep"]
[null,null,null,null,null,null,null,null,null,null,"Oct"]
[null,null,null,null,null,null,null,null,null,null,"Nov"]
[null,null,null,null,null,null,null,null,null,null,"Dec"]
[null,null,null,null,null,null,null,null,null,null,"Annual",{"$f":"AVERAGE(L52:L63)","v":{"$error":"#DIV/0!"}},{"$f":"MAX(M52:M63)","v":0},{"$f":"AVERAGE(N52:N63)","v":{"$error":"#DIV/0!"}},{"$f":"MAX(O52:O63)","v":0}]
[]
[null,null,null,null,null,null,null,null,null,{"$f":"+A6","v":2021},"mg/Nm3","Monthly 1/2 hourly mean","Monthly 1/2 hourly maximum","Monthly daily mean","Monthly daily maximum"]
[null,null,null,null,null,null,null,null,null,"A5","Jan"]
[null,null,null,null,null,null,null,null,null,null,"Feb"]
[null,null,null,null,null,null,null,null,null,null,"Mar"]
[null,null,null,null,null,null,null,null,null,null,"Apr"]
[null,null,null,null,null,null,null,null,null,null,"May"]
[null,null,null,null,null,null,null,null,null,null,"Jun"]
[null,null,null,null,null,null,null,null,null,null,"Jul"]
[null,null,null,null,null,null,null,null,null,null,"Aug"]
[null,null,null,null,null,null,null,null,null,null,"Sep"]
[null,null,null,null,null,null,null,null,null,null,"Oct"]
[null,null,null,null,null,null,null,null,null,null,"Nov"]
[null,null,null,null,null,null,null,null,null,null,"Dec"]
[null,null,null,null,null,null,null,null,null,null,"Annual",{"$f":"AVERAGE(L67:L78)","v":{"$error":"#DIV/0!"}},{"$f":"MAX(M67:M78)","v":0},{"$f":"AVERAGE(N67:N78)","v":{"$error":"#DIV/0!"}},{"$f":"MAX(O67:O78)","v":0}]

{"sheet":"CO 95% 10 min","index":19,"n_rows":79,"n_cols":19,"rows_kept":79,"cut":false,"hidden":false,"merged":[[3,18,7,20],[9,18,11,20],[12,18,15,20],[66,10,78,10],[4,1,4,4],[4,5,4,7],[4,10,4,16],[6,10,18,10],[21,10,33,10],[36,10,48,10],[47,0,47,7],[48,0,51,7],[51,10,63,10]]}
[{"$f":"+'Cover Page'!$B$29","v":"Annual Performance Report 2021"},null,null,null,{"$f":"+'Cover Page'!$B$33","v":"SUEZ R&R Wilton 11 EfW"}]
[]
["Monitoring of Carbon Monoxide (10-minute avg)",null,null,null,"Whole Installation",null,null,"See  Notes in Cell S3",null,{"$f":"+A3","v":"Monitoring of Carbon Monoxide (10-minute avg)"},null,null,null,null,"Per Combustion Line",null,"Notes:",null,"Notes:"]
[null,null,null,null,null,null,null,null,null,null,null,null,null,null,null,null,null,null,"User to add logic to complete Whole installation, Table A5:H18. From the data in Per Combustion Line, Table K6:Q79, subject to No. of lines installed"]
["mg/Nm3","10-minute Reference Periods",null,null,null,"Daily Reference Periods"]
[{"$f":"+'Cover Page'!C39","v":2021},"95%ile 10-min avg CO ELV","95%ile 10-min avg maximum","Monthly CO 10-min avg mean","10-min avg maximum","Daily CO ELV","Monthly daily mean","Highest daily maximum",null,null,{"$f":"+A6","v":2021},"mg/Nm3","95%ile 10-min avg maximum","Monthly CO 10-min avg mean","10-min avg maximum","Monthly daily mean","Monthly daily maximum"]
["Jan",150,{"$f":"MAX(M7,M22)","v":8},{"$f":"AVERAGE(N7,N22)","v":4.5},{"$f":"MAX(O7,O22)","v":127},50,{"$f":"AVERAGE(P7,P22)","v":4.5},{"$f":"MAX(Q7,Q22)","v":6},null,null,"A1","Jan",8,4,127,4,6]
["Feb",{"$f":"+B7","v":150},{"$f":"MAX(M8,M23)","v":11},{"$f":"AVERAGE(N8,N23)","v":6},{"$f":"MAX(O8,O23)","v":269},{"$f":"+F7","v":50},{"$f":"AVERAGE(P8,P23)","v":5},{"$f":"MAX(Q8,Q23)","v":11},null,null,null,"Feb",11,6,258,4,11]
["Mar",{"$f":"+B8","v":150},21,6.5,516,{"$f":"+F8","v":50},6.5,14,null,null,null,"Mar",11,7,195,7,11,null,"Whole Installation table A5:H18:"]
["Apr",150,12,6.5,282,50,6.5,11,null,null,null,"Apr",11,7,282,7,11,null,"Mean: for 10-min and daily periods use average of all operational combustion lines."]
["May",150,11,7,403,50,7,12,null,null,null,"May",11,8,321,8,12]
["Jun",150,8,6.5,363,50,6.5,9,null,null,null,"Jun",8,7,306,7,9]
["Jul",150,11,7,94,50,7,10,null,null,null,"Jul",11,9,94,9,10,null,"Maximum: for 10-min and daily periods use the highest of all operational combustion lines in any month."]
["Aug",150,14,7.5,874,50,7.5,16,null,null,null,"Aug",14,9,874,9,16]
["Sep",150,10,6,121,50,6,8,null,null,null,"Sep",10,7,83,7,8]
["Oct",150,7,6,111,50,6,9,null,null,null,"Oct",7,7,111,7,9]
["Nov",150,20,7,367,50,7,12,null,null,null,"Nov",20,8,367,8,12]
["Dec",150,20,8.5,1319,50,8.5,9,null,null,null,"Dec",20,8,242,8,9]
[null,null,null,null,null,null,null,null,null,null,null,"Annual",{"$f":"AVERAGE(M7:M18)","v":11.833333333333334},null,{"$f":"MAX(O7:O18)","v":874},{"$f":"AVERAGE(P7:P18)","v":7.083333333333333},{"$f":"MAX(Q7:Q18)","v":16}]
[]
[null,null,null,null,null,null,null,null,null,null,{"$f":"+A6","v":2021},"mg/Nm3","95%ile 10-min avg maximum","Monthly CO 10-min avg mean","10-min avg maximum","Monthly daily mean","Monthly daily maximum"]
[null,null,null,null,null,null,null,null,null,null,"A2","Jan",8,5,71,5,6]
[null,null,null,null,null,null,null,null,null,null,null,"Feb",11,6,269,6,8]
[null,null,null,null,null,null,null,null,null,null,null,"Mar",21,6,516,6,14]
[null,null,null,null,null,null,null,null,null,null,null,"Apr",12,6,173,6,8]
[null,null,null,null,null,null,null,null,null,null,null,"May",9,6,403,6,9]
[null,null,null,null,null,null,null,null,null,null,null,"Jun",7,6,363,6,9]
[null,null,null,null,null,null,null,null,null,null,null,"Jul",11,5,49,5,6]
[null,null,null,null,null,null,null,null,null,null,null,"Aug",10,6,196,6,7]
[null,null,null,null,null,null,null,null,null,null,null,"Sep",6,5,121,5,5]
[null,null,null,null,null,null,null,null,null,null,null,"Oct",5,5,87,5,7]
[null,null,null,null,null,null,null,null,null,null,null,"Nov",10,6,25,6,7]
[null,null,null,null,null,null,null,null,null,null,null,"Dec",7,9,1319,9,7]
[null,null,null,null,null,null,null,null,null,null,null,"Annual",{"$f":"AVERAGE(M22:M33)","v":9.75},null,{"$f":"MAX(O22:O33)","v":1319},{"$f":"AVERAGE(P22:P33)","v":5.916666666666667},{"$f":"MAX(Q22:Q33)","v":14}]
[]
[null,null,null,null,null,null,null,null,null,null,{"$f":"+A6","v":2021},"mg/Nm3","95%ile 10-min avg maximum","Monthly CO 10-min avg mean","10-min avg maximum","Monthly daily mean","Monthly daily maximum"]
[null,null,null,null,null,null,null,null,null,null,"A3","Jan"]
[null,null,null,null,null,null,null,null,null,null,null,"Feb"]
[null,null,null,null,null,null,null,null,null,null,null,"Mar"]
[null,null,null,null,null,null,null,null,null,null,null,"Apr"]
[null,null,null,null,null,null,null,null,null,null,null,"May"]
[null,null,null,null,null,null,null,null,null,null,null,"Jun"]
[null,null,null,null,null,null,null,null,null,null,null,"Jul"]
[null,null,null,null,null,null,null,null,null,null,null,"Aug"]
[null,null,null,null,null,null,null,null,null,null,null,"Sep"]
[null,null,null,null,null,null,null,null,null,null,null,"Oct"]
[null,null,null,null,null,null,null,null,null,null,null,"Nov"]
["Comments :",null,null,null,null,null,null,null,null,null,null,"Dec"]
["Environment Agency explanatory note: The 10-minute average ELV is based on the “95th percentile”. In this case this means that 95% of the 10 minute averages in the relevant 24-hour period (i.e. 137) must be below 150 mg/Nm3, and 5% (i.e. 7) are allowed to be any value above 150 mg/Nm3. Whilst we expect operators to minimise CO emissions at all times, it is perfectly acceptable for the value of the maximum 10-minute average to be above 150 mg/Nm3, provided the 95th percentile ELV has been met for that period. ",null,null,null,null,null,null,null,null,null,null,"Annual",{"$f":"AVERAGE(M37:M48)","v":{"$error":"#DIV/0!"}},null,{"$f":"MAX(O37:O48)","v":0},{"$f":"AVERAGE(P37:P48)","v":{"$error":"#DIV/0!"}},{"$f":"MAX(Q37:Q48)","v":0}]
[]
[null,null,null,null,null,null,null,null,null,null,{"$f":"+A6","v":2021},"mg/Nm3","95%ile 10-min avg maximum","Monthly CO 10-min avg mean","10-min avg maximum","Monthly daily mean","Monthly daily maximum"]
[null,null,null,null,null,null,null,null,null,null,"A4","Jan"]
[null,null,null,null,null,null,null,null,null,null,null,"Feb"]
[null,null,null,null,null,null,null,null,null,null,null,"Mar"]
[null,null,null,null,null,null,null,null,null,null,null,"Apr"]
[null,null,null,null,null,null,null,null,null,null,null,"May"]
[null,null,null,null,null,null,null,null,null,null,null,"Jun"]
[null,null,null,null,null,null,null,null,null,null,null,"Jul"]
[null,null,null,null,null,null,null,null,null,null,null,"Aug"]
[null,null,null,null,null,null,null,null,null,null,null,"Sep"]
[null,null,null,null,null,null,null,null,null,null,null,"Oct"]
[null,null,null,null,null,null,null,null,null,null,null,"Nov"]
[null,null,null,null,null,null,null,null,null,null,null,"Dec"]
[null,null,null,null,null,null,null,null,null,null,null,"Annual",{"$f":"AVERAGE(M52:M63)","v":{"$error":"#DIV/0!"}},null,{"$f":"MAX(O52:O63)","v":0},{"$f":"AVERAGE(P52:P63)","v":{"$error":"#DIV/0!"}},{"$f":"MAX(Q52:Q63)","v":0}]
[]
[null,null,null,null,null,null,null,null,null,null,{"$f":"+A6","v":2021},"mg/Nm3","95%ile 10-min avg maximum","Monthly CO 10-min avg mean","10-min avg maximum","Monthly daily mean","Monthly daily maximum"]
[null,null,null,null,null,null,null,null,null,null,"A5","Jan"]
[null,null,null,null,null,null,null,null,null,null,null,"Feb"]
[null,null,null,null,null,null,null,null,null,null,null,"Mar"]
[null,null,null,null,null,null,null,null,null,null,null,"Apr"]
[null,null,null,null,null,null,null,null,null,null,null,"May"]
[null,null,null,null,null,null,null,null,null,null,null,"Jun"]
[null,null,null,null,null,null,null,null,null,null,null,"Jul"]
[null,null,null,null,null,null,null,null,null,null,null,"Aug"]
[null,null,null,null,null,null,null,null,null,null,null,"Sep"]
[null,null,null,null,null,null,null,null,null,null,null,"Oct"]
[null,null,null,null,null,null,null,null,null,null,null,"Nov"]
[null,null,null,null,null,null,null,null,null,null,null,"Dec"]
[null,null,null,null,null,null,null,null,null,null,null,"Annual",{"$f":"AVERAGE(M67:M78)","v":{"$error":"#DIV/0!"}},null,{"$f":"MAX(O67:O78)","v":0},{"$f":"AVERAGE(P67:P78)","v":{"$error":"#DIV/0!"}},{"$f":"MAX(Q67:Q78)","v":0}]

{"sheet":"NH3","index":20,"n_rows":79,"n_cols":17,"rows_kept":79,"cut":false,"hidden":false,"merged":[[3,16,7,18],[9,16,11,18],[12,16,15,18],[66,9,78,9],[4,1,4,3],[4,4,4,6],[4,9,4,14],[6,9,18,9],[21,9,33,9],[36,9,48,9],[47,0,47,6],[48,0,51,6],[51,9,63,9]]}
[{"$f":"+'Cover Page'!$B$29","v":"Annual Performance Report 2021"},null,null,null,{"$f":"+'Cover Page'!$B$33","v":"SUEZ R&R Wilton 11 EfW"}]
[]
["Monitoring of Ammnonia emissions ",null,null,"Whole Installation",null,null,"See  Notes in Cell Q3",null,null,{"$f":"+A3","v":"Monitoring of Ammnonia emissions "},null,null,null,"Per Combustion Line",null,null,"Notes:"]
[null,null,null,null,null,null,null,null,null,null,null,null,null,null,null,null,"User to add logic to complete Whole installation, Table A5:G18. From the data in Per Combustion Line, Table J6:O79, subject to No. of lines installed"]
["mg/Nm3","1/2 Hourly Reference Periods",null,null,"Daily Reference Periods"]
[{"$f":"+'Cover Page'!C39","v":2021},"1/2 hourly NH3 ELV","Monthly 1/2 hourly mean","Highest 1/2 hourly maximum","Daily NH3 ELV","Monthly daily mean","Highest daily maximum",null,null,{"$f":"+A6","v":2021},"mg/Nm3","Monthly 1/2 hourly mean","Monthly 1/2 hourly maximum","Monthly daily mean","Monthly daily maximum"]
["Jan",0,{"$f":"AVERAGE(L7,L22)","v":0.5},{"$f":"MAX(M7,M22)","v":3},10,{"$f":"AVERAGE(N7,N22)","v":0.5},{"$f":"MAX(O7,O22)","v":2},null,null,"A1","Jan",1,3,1,2]
["Feb",{"$f":"+B7","v":0},{"$f":"AVERAGE(L8,L23)","v":1.5},{"$f":"MAX(M8,M23)","v":14},{"$f":"+E7","v":10},{"$f":"AVERAGE(N8,N23)","v":1.5},{"$f":"MAX(O8,O23)","v":2},null,null,null,"Feb",1,4,1,2]
["Mar",{"$f":"+B8","v":0},{"$f":"AVERAGE(L9,L24)","v":0.5},12,{"$f":"+E8","v":10},0.5,1,null,null,null,"Mar",0,12,0,1,null,"Whole Installation table A5:G18:"]
["Apr",0,{"$f":"AVERAGE(L10,L25)","v":1},10,10,1,3,null,null,null,"Apr",1,10,1,3,null,"Mean: for 1/2 hourly and daily periods calculate mean of values across all operational combustion lines for the month"]
["May",0,{"$f":"AVERAGE(L11,L26)","v":1},8,10,1,2,null,null,null,"May",1,8,1,2]
["Jun",0,{"$f":"AVERAGE(L12,L27)","v":0.5},12,10,0.5,2,null,null,null,"Jun",0,6,0,1]
["Jul",0,{"$f":"AVERAGE(L13,L28)","v":1},5,10,1,2,null,null,null,"Jul",1,5,1,1,null,"Maximum: for 1/2 hourly and daily periods use the highest value across all operational combustion lines for the month"]
["Aug",0,{"$f":"AVERAGE(L14,L29)","v":1},6,10,1,2,null,null,null,"Aug",1,6,1,1]
["Sep",0,{"$f":"AVERAGE(L15,L30)","v":2},11,10,2,4,null,null,null,"Sep",3,11,3,4]
["Oct",0,{"$f":"AVERAGE(L16,L31)","v":2},9,10,2,4,null,null,null,"Oct",2,9,2,4]
["Nov",0,{"$f":"AVERAGE(L17,L32)","v":1.5},22,10,1.5,4,null,null,null,"Nov",1,6,1,2]
["Dec",0,{"$f":"AVERAGE(L18,L33)","v":1},50,10,1,2,null,null,null,"Dec",1,9,1,2]
[null,null,null,null,null,null,null,null,null,null,"Annual",{"$f":"AVERAGE(L7:L18)","v":1.0833333333333333},{"$f":"MAX(M7:M18)","v":12},{"$f":"AVERAGE(N7:N18)","v":1.0833333333333333},{"$f":"MAX(O7:O18)","v":4}]
[]
[null,null,null,null,null,null,null,null,null,{"$f":"+A6","v":2021},"mg/Nm3","Monthly 1/2 hourly mean","Monthly 1/2 hourly maximum","Monthly daily mean","Monthly daily maximum"]
[null,null,null,null,null,null,null,null,null,"A2","Jan",0,3,0,1]
[null,null,null,null,null,null,null,null,null,null,"Feb",2,14,2,2]
[null,null,null,null,null,null,null,null,null,null,"Mar",1,3,1,1]
[null,null,null,null,null,null,null,null,null,null,"Apr",1,3,1,1]
[null,null,null,null,null,null,null,null,null,null,"May",1,7,1,2]
[null,null,null,null,null,null,null,null,null,null,"Jun",1,12,1,2]
[null,null,null,null,null,null,null,null,null,null,"Jul",1,3,1,2]
[null,null,null,null,null,null,null,null,null,null,"Aug",1,5,1,2]
[null,null,null,null,null,null,null,null,null,null,"Sep",1,3,1,1]
[null,null,null,null,null,null,null,null,null,null,"Oct",2,6,2,3]
[null,null,null,null,null,null,null,null,null,null,"Nov",2,22,2,4]
[null,null,null,null,null,null,null,null,null,null,"Dec",1,50,1,2]
[null,null,null,null,null,null,null,null,null,null,"Annual",{"$f":"AVERAGE(L22:L33)","v":1.1666666666666667},{"$f":"MAX(M22:M33)","v":50},{"$f":"AVERAGE(N22:N33)","v":1.1666666666666667},{"$f":"MAX(O22:O33)","v":4}]
[]
[null,null,null,null,null,null,null,null,null,{"$f":"+A6","v":2021},"mg/Nm3","Monthly 1/2 hourly mean","Monthly 1/2 hourly maximum","Monthly daily mean","Monthly daily maximum"]
[null,null,null,null,null,null,null,null,null,"A3","Jan"]
[null,null,null,null,null,null,null,null,null,null,"Feb"]
[null,null,null,null,null,null,null,null,null,null,"Mar"]
[null,null,null,null,null,null,null,null,null,null,"Apr"]
[null,null,null,null,null,null,null,null,null,null,"May"]
[null,null,null,null,null,null,null,null,null,null,"Jun"]
[null,null,null,null,null,null,null,null,null,null,"Jul"]
[null,null,null,null,null,null,null,null,null,null,"Aug"]
[null,null,null,null,null,null,null,null,null,null,"Sep"]
[null,null,null,null,null,null,null,null,null,null,"Oct"]
[null,null,null,null,null,null,null,null,null,null,"Nov"]
["Comments :",null,null,null,null,null,null,null,null,null,"Dec"]
["An indicated ELV value of zero in the table above means that no ammonia limit is set in the permit.  ",null,null,null,null,null,null,null,null,null,"Annual",{"$f":"AVERAGE(L37:L48)","v":{"$error":"#DIV/0!"}},{"$f":"MAX(M37:M48)","v":0},{"$f":"AVERAGE(N37:N48)","v":{"$error":"#DIV/0!"}},{"$f":"MAX(O37:O48)","v":0}]
[]
[null,null,null,null,null,null,null,null,null,{"$f":"+A6","v":2021},"mg/Nm3","Monthly 1/2 hourly mean","Monthly 1/2 hourly maximum","Monthly daily mean","Monthly daily maximum"]
[null,null,null,null,null,null,null,null,null,"A4","Jan"]
[null,null,null,null,null,null,null,null,null,null,"Feb"]
[null,null,null,null,null,null,null,null,null,null,"Mar"]
[null,null,null,null,null,null,null,null,null,null,"Apr"]
[null,null,null,null,null,null,null,null,null,null,"May"]
[null,null,null,null,null,null,null,null,null,null,"Jun"]
[null,null,null,null,null,null,null,null,null,null,"Jul"]
[null,null,null,null,null,null,null,null,null,null,"Aug"]
[null,null,null,null,null,null,null,null,null,null,"Sep"]
[null,null,null,null,null,null,null,null,null,null,"Oct"]
[null,null,null,null,null,null,null,null,null,null,"Nov"]
[null,null,null,null,null,null,null,null,null,null,"Dec"]
[null,null,null,null,null,null,null,null,null,null,"Annual",{"$f":"AVERAGE(L52:L63)","v":{"$error":"#DIV/0!"}},{"$f":"MAX(M52:M63)","v":0},{"$f":"AVERAGE(N52:N63)","v":{"$error":"#DIV/0!"}},{"$f":"MAX(O52:O63)","v":0}]
[]
[null,null,null,null,null,null,null,null,null,{"$f":"+A6","v":2021},"mg/Nm3","Monthly 1/2 hourly mean","Monthly 1/2 hourly maximum","Monthly daily mean","Monthly daily maximum"]
[null,null,null,null,null,null,null,null,null,"A5","Jan"]
[null,null,null,null,null,null,null,null,null,null,"Feb"]
[null,null,null,null,null,null,null,null,null,null,"Mar"]
[null,null,null,null,null,null,null,null,null,null,"Apr"]
[null,null,null,null,null,null,null,null,null,null,"May"]
[null,null,null,null,null,null,null,null,null,null,"Jun"]
[null,null,null,null,null,null,null,null,null,null,"Jul"]
[null,null,null,null,null,null,null,null,null,null,"Aug"]
[null,null,null,null,null,null,null,null,null,null,"Sep"]
[null,null,null,null,null,null,null,null,null,null,"Oct"]
[null,null,null,null,null,null,null,null,null,null,"Nov"]
[null,null,null,null,null,null,null,null,null,null,"Dec"]
[null,null,null,null,null,null,null,null,null,null,"Annual",{"$f":"AVERAGE(L67:L78)","v":{"$error":"#DIV/0!"}},{"$f":"MAX(M67:M78)","v":0},{"$f":"AVERAGE(N67:N78)","v":{"$error":"#DIV/0!"}},{"$f":"MAX(O67:O78)","v":0}]